Workbook

Sheet Title Page
B8: JEN 2027-31 - ACS Standardised Metering Pricing Model
B10: Version | C10: 1.02
B11: Date | C11: 2022-01-14
B14: Status
B16: Notes:
B17: Current model version contains test data.
C19: Locked Sheets Pwd:
B25: Version Summary
B27: Date | C27: Version | D27: Author | E27: Changes
B29: 2022-01-14 | C29: 1.02 | D29: AER | E29: Updates following consultation
B30: 2021-10-25 | C30: 1 | D30: AER | E30: Consultation version (contains anonymised input data)

Sheet Change log
B2: Worksheet | C2: Cells | D2: Description of change
B3: Throughout workbook | D3: Added cost basis labelling
B4: Inputs | General | C4: G9 | D4: Updated decision stage
B5: Inputs | General | C5: H26:L26 | D5: Update forecast inflation
B6: Inputs | General | C6: H32:L32 | D6: Update opex price change to reflect Input prices
B7: Inputs | Exit Fees | C7: G9:L18 | D7: Updated RAB inputs
B8: Inputs | Exit Fees | C8: D29:D31 | D8: Updated titles for Single Phase and Three Phase to include DC
B9: Inputs | Exit Fees | C9: G29:G32 | D9: Corrected base year exit fees
B10: Inputs | Exit Fees | C10: K49:L63 | D10: Updated meter unit costs
B11: Inputs | Exit Fees | C11: K71:O71 | D11: Updated meter end year populations
B12: Inputs | Exit Fees | C12: K102:O103 | D12: Updated admin labour tasks
B13: Inputs | Exit Fees | C13: G126:L135 | D13: Updated TAB inputs

Sheet Inputs | General
B1: ='Title Page'!B8&" v"&'Title Page'!$C$10 -> JEN 2027-31 - ACS Standardised Metering Pricing Model v1.02 | V1: Worksheet check: | W1: =IF(COUNTA($X$14:$X$46)=COUNTIF($X14:$X47,"OK"),"OK","Check") -> OK
B2: =MID(CELL("filename",A1),FIND("]",CELL("filename",A1))+1,255) -> Inputs | General | I2: Key: | J2: Input | K2: External Link | M2: Internal Link | O2: Jemena modification
B5: 1. Inputs - General
C7: Inputs | D7: Source | E7: Input Format | G7: Value
C8: NSP name | D8: NSP | G8: JEN - ACS
C9: Decision stage | D9: NSP | G9: draft
C11: Forecast regulatory control period, first year | D11: NSP | E11: YYYY-YY | G11: 2026-27
C12: Forecast regulatory control period, last year | D12: NSP | G12: =LEFT(FPFirstYear,4)+4&"-"&RIGHT(FPFirstYear,2)+4 -> 2030-31
C14: Regulatory Period Length, Yrs | G14: =LEFT(G12,4)-LEFT(FPFirstYear,4)+1 -> 5
C16: Model Used For (Price Cap or Vic Exit Fees?) | G16: Exit Fees (Vic)
B21: =LEFT('Inputs | General'!B5,1)+1&". Linked Inputs - Inflation" -> 2. Linked Inputs - Inflation
G24: Base year | H24: Regulatory period
C25: Year | E25: Units | G25: =LEFT(H25,4)-1&"-"&RIGHT(H25,2)-1 -> 2025-26 | H25: =FPFirstYear -> 2026-27 | I25: =LEFT(H25,4)+1&"-"&RIGHT(H25,2)+1 -> 2027-28 | J25: =LEFT(I25,4)+1&"-"&RIGHT(I25,2)+1 -> 2028-29 | K25: =LEFT(J25,4)+1&"-"&RIGHT(J25,2)+1 -> 2029-30 | L25: =LEFT(K25,4)+1&"-"&RIGHT(K25,2)+1 -> 2030-31
C26: Inflation Assumption (CPI % increase) | E26: % | H26: 0.02549993905 | I26: 0.02549993905 | J26: 0.02549993905 | K26: 0.02549993905 | L26: 0.02549993905
C27: Cumulative Inflation Index (CPI end period) | E27: Index | G27: 1 | H27: =G27*(1+H26) -> 1.025499939 | I27: =H27*(1+I26) -> 1.051650125 | J27: =I27*(1+J26) -> 1.078467139 | K27: =J27*(1+K26) -> 1.105967985 | L27: =K27*(1+L26) -> 1.134170102
G30: Base year | H30: Regulatory period
C31: Year | E31: Units | G31: =LEFT(H31,4)-1&"-"&RIGHT(H31,2)-1 -> 2025-26 | H31: =FPFirstYear -> 2026-27 | I31: =LEFT(H31,4)+1&"-"&RIGHT(H31,2)+1 -> 2027-28 | J31: =LEFT(I31,4)+1&"-"&RIGHT(I31,2)+1 -> 2028-29 | K31: =LEFT(J31,4)+1&"-"&RIGHT(J31,2)+1 -> 2029-30 | L31: =LEFT(K31,4)+1&"-"&RIGHT(K31,2)+1 -> 2030-31
C32: Weighted average of Opex Price Change (% increase) | E32: % | H32: 0.009150651113 | I32: 0.009453290313 | J32: 0.01167710903 | K32: 0.01207897168 | L32: 0.01109252182
C33: Real Price index to input year | E33: Index | G33: 1 | H33: =G33*(1+H32) -> 1.009150651 | I33: =H33*(1+I32) -> 1.018690445 | J33: =I33*(1+J32) -> 1.030585805 | K33: =J33*(1+K32) -> 1.043034221 | L33: =K33*(1+L32) -> 1.054604101
B36: =LEFT('Inputs | General'!B21,1)+1&". Linked Inputs - Return and tax assumptions" -> 3. Linked Inputs - Return and tax assumptions
G39: Base year | H39: Regulatory period
C40: Assumption | E40: Units | G40: =LEFT(H40,4)-1&"-"&RIGHT(H40,2)-1 -> 2025-26 | H40: =FPFirstYear -> 2026-27 | I40: =LEFT(H40,4)+1&"-"&RIGHT(H40,2)+1 -> 2027-28 | J40: =LEFT(I40,4)+1&"-"&RIGHT(I40,2)+1 -> 2028-29 | K40: =LEFT(J40,4)+1&"-"&RIGHT(J40,2)+1 -> 2029-30 | L40: =LEFT(K40,4)+1&"-"&RIGHT(K40,2)+1 -> 2030-31
C41: Value of imputation credits | E41: % | G41: 0.585 | H41: 0.57 | I41: 0.57 | J41: 0.57 | K41: 0.57 | L41: 0.57
C42: Corporate tax rate | E42: % | G42: 0.3 | H42: 0.3 | I42: 0.3 | J42: 0.3 | K42: 0.3 | L42: 0.3

Sheet Exit Fees >

Sheet Input | Exit Fees
B1: ='Title Page'!B8&" v"&'Title Page'!$C$10 -> JEN 2027-31 - ACS Standardised Metering Pricing Model v1.02 | M1: DNSP: | N1: =IF('Inputs | General'!$G$16="Price Cap","NOT USED",NSP) -> JEN - ACS
B2: =MID(CELL("filename",A1),FIND("]",CELL("filename",A1))+1,255) -> Input | Exit Fees | H2: Key: | I2: Input | J2: External Link | K2: Internal Link | L2: Jemena modification
B5: =LEFT('Inputs | General'!B21,1)+1&". Linked Input - RAB" -> 3. Linked Input - RAB | J5: =IF('Inputs | General'!$G$16="Price Cap","NOT USED","") -> 
B7: Linked Input - RAB Meters | G7: Base Year | H7: Regulatory Period
E8: Units | G8: =LEFT(H8,4)-1&"-"&RIGHT(H8,2)-1 -> 2025-26 | H8: =FPFirstYear -> 2026-27 | I8: =LEFT(H8,4)+1&"-"&RIGHT(H8,2)+1 -> 2027-28 | J8: =LEFT(I8,4)+1&"-"&RIGHT(I8,2)+1 -> 2028-29 | K8: =LEFT(J8,4)+1&"-"&RIGHT(J8,2)+1 -> 2029-30 | L8: =LEFT(K8,4)+1&"-"&RIGHT(K8,2)+1 -> 2030-31 | M8: =LEFT(L8,4)+1&"-"&RIGHT(L8,2)+1 -> 2031-32
C9: Opening RAB | E9: $m | G9: 41.28745866 | H9: =G9+G10-G11 -> 41.28745866 | I9: 43.26201626 | J9: 52.49510661 | K9: 67.13536413 | L9: 84.13883089 | M9: 103.773448 | N9: Opening balance of METERS row in PTRM inputs sheet of PTRM (nominal)
C10: Gross capital expenditure | E10: $m | H10: 7.050657746 | I10: 14.77923434 | J10: 21.1716838 | K10: 24.94633862 | L10: 29.24057826 | N10: Gross capex from METERS row in ASSETS sheet of PTRM (nominal)
C11: Regulatory depreciation | E11: $m | H11: 5.076100139 | I11: 5.546143988 | J11: 6.531426277 | K11: 7.942871864 | L11: 9.605961106 | N11: Depreciation from METERS row in ASSETS sheet of PTRM (nominal)
B14: Linked Input - RAB Comms & IT & Other
E15: Units | G15: =LEFT(H15,4)-1&"-"&RIGHT(H15,2)-1 -> 2025-26 | H15: =FPFirstYear -> 2026-27 | I15: =LEFT(H15,4)+1&"-"&RIGHT(H15,2)+1 -> 2027-28 | J15: =LEFT(I15,4)+1&"-"&RIGHT(I15,2)+1 -> 2028-29 | K15: =LEFT(J15,4)+1&"-"&RIGHT(J15,2)+1 -> 2029-30 | L15: =LEFT(K15,4)+1&"-"&RIGHT(K15,2)+1 -> 2030-31 | M15: =LEFT(L15,4)+1&"-"&RIGHT(L15,2)+1 -> 2031-32
C16: Opening RAB | E16: $m | G16: 6.738677525 | H16: =G16+G17-G18 -> 6.738677525 | I16: =H16+H17-H18 -> 7.654388509 | J16: 8.536021698 | K16: 8.888777289 | L16: 8.969437241 | M16: 8.953932224 | N16: Opening balance of COMMS & IT & Inhouse Software & ERC rows from PTRM INPUTS sheet of PTRM (nominal)
C17: Gross capital expenditure | E17: $m | H17: 2.333831503 | I17: 2.572767058 | J17: 2.16492632 | K17: 2.20210587 | L17: 2.420527454 | N17: Gross capex from COMMS & IT & Inhouse Software & ERC rows in ASSETS sheet of PTRM (nominal)
C18: Regulatory depreciation | E18: $m | H18: 1.418120519 | I18: 1.691133869 | J18: 1.812170729 | K18: 2.121445918 | L18: 2.436032471 | N18: Depreciation from COMMS & IT & Inhouse Software & ERC rows in ASSETS sheet of PTRM (nominal)
E21: Units | G21: =LEFT(H21,4)-1&"-"&RIGHT(H21,2)-1 -> 2025-26 | H21: =FPFirstYear -> 2026-27 | I21: =LEFT(H21,4)+1&"-"&RIGHT(H21,2)+1 -> 2027-28 | J21: =LEFT(I21,4)+1&"-"&RIGHT(I21,2)+1 -> 2028-29 | K21: =LEFT(J21,4)+1&"-"&RIGHT(J21,2)+1 -> 2029-30 | L21: =LEFT(K21,4)+1&"-"&RIGHT(K21,2)+1 -> 2030-31 | M21: =LEFT(L21,4)+1&"-"&RIGHT(L21,2)+1 -> 2031-32
B22: TOTAL Opening RAB | E22: $m | G22: =G9+G16 -> 48.02613618 | H22: 48.02613618 | I22: 50.91640477 | J22: 61.03112831 | K22: 76.02414142 | L22: 93.10826813 | M22: 112.7273803
B25: =LEFT(B5,1)+1&". Input | Define Exit Fees" -> 4. Input | Define Exit Fees
B27: Enter Allowed Exit Fee in final year of current Regulatory Period | G27: Exit Fee
D28: Exit Fee Name | F28: Units | G28: Last Year - Current RP
D29: Single Phase (inc. DC) | F29: $dollars | G29: 191.64
D30: Single Phase, Two Element | F30: $dollars | G30: 191.64
D31: Three Phase (inc. DC) | F31: $dollars | G31: 191.64
D32: Three Phase CT | F32: $dollars | G32: 191.64
D33: 0 | F33: $dollars
D34: 0 | F34: $dollars | G34: 0
D35: 0 | F35: $dollars | G35: 0
D36: 0 | F36: $dollars | G36: 0
D37: 0 | F37: $dollars | G37: 0
D38: 0 | F38: $dollars | G38: 0
B42: =LEFT(B25,1)+1&". Input | from Metering ACS Model" -> 5. Input | from Metering ACS Model
B44: METERS
B46: a | C46: Inputs - Designated Exit Fee by Meter Type | G46: b | H46: Linked Input - Meter Types & Unit Costs
K47: Equipment Cost | L47: Labour Cost | M47: Total Cost
D48: Designated Exit Fee | H48: Meter Type | I48: Units | J48: Basis | K48: New Meter Installations | L48: New Meter Installations | M48: New Meter Installations | Q48: Link from Metering - ACS Model
D49: Single Phase (inc. DC) | H49: =+D49 -> Single Phase (inc. DC) | I49: $dollars | J49: 2024-06-01 | K49: 224.154777 | L49: 187.236619 | M49: =K49+L49 -> 411.391396
D50: Single Phase, Two Element | H50: =+D50 -> Single Phase, Two Element | I50: $dollars | J50: 2024-06-01 | K50: 261.36 | L50: 187.236619 | M50: 448.596619
D51: Three Phase (inc. DC) | H51: =+D51 -> Three Phase (inc. DC) | I51: $dollars | J51: 2024-06-01 | K51: 386.2950355 | L51: 200.175575 | M51: 586.4706105
D52: Three Phase CT | H52: =+D52 -> Three Phase CT | I52: $dollars | J52: 2024-06-01 | K52: 502.94 | L52: 355.7495761 | M52: 858.6895761
I53: $dollars | M53: 0
D54: 0 | I54: $dollars | M54: 0
D55: 0 | I55: $dollars
D56: 0 | I56: $dollars
D57: 0 | I57: $dollars
D58: 0 | I58: $dollars
D59: 0 | I59: $dollars
D60: 0 | I60: $dollars
D61: 0 | H61: 0 | I61: $dollars
D62: 0 | H62: 0 | I62: $dollars
D63: 0 | H63: 0 | I63: $dollars
B66: e | C66: Linked Input - Gross Meter Population (Year End), by meter type
J67: Number of meters in year
H68: =H48 -> Meter Type | I68: Units | J68: =LEFT(K68,4)-1&"-"&RIGHT(K68,2)-1 -> 2025-26 | K68: =FPFirstYear -> 2026-27 | L68: =LEFT(K68,4)+1&"-"&RIGHT(K68,2)+1 -> 2027-28 | M68: =LEFT(L68,4)+1&"-"&RIGHT(L68,2)+1 -> 2028-29 | N68: =LEFT(M68,4)+1&"-"&RIGHT(M68,2)+1 -> 2029-30 | O68: =LEFT(N68,4)+1&"-"&RIGHT(N68,2)+1 -> 2030-31 | Q68: Link from Metering - ACS Model
H69: Single Phase (inc. DC) | I69: No. | J69: 307426.1063 | K69: 306336.52 | L69: 304606.6825 | M69: 302845.9295 | N69: 301054.2893 | O69: 299231.7191
H70: Single Phase, Two Element | I70: No. | J70: 20550.73132 | K70: 20182.62769 | L70: 19807.80108 | M70: 19426.27561 | N70: 19038.0574 | O70: 18643.1372
H71: Three Phase (inc. DC) | I71: No. | J71: 64521.32509 | K71: 74772.2306 | L71: 83461.10678 | M71: 92305.26975 | N71: 101304.5774 | O71: 110459.2443
H72: Three Phase CT | I72: No. | J72: 2673.679982 | K72: 2854.736946 | L72: 3040.662363 | M72: 3229.910621 | N72: 3422.47868 | O72: 3618.371131
H73: 0 | I73: No.
I74: No.
H75: =H55 -> 0 | I75: No.
H76: 0 | I76: No.
H77: 0 | I77: No.
H78: 0 | I78: No.
H79: 0 | I79: No.
H80: 0 | I80: No.
H81: 0 | I81: No. | J81: 0 | K81: 0 | L81: 0 | M81: 0 | N81: 0 | O81: 0
H82: 0 | I82: No. | J82: 0 | K82: 0 | L82: 0 | M82: 0 | N82: 0 | O82: 0
H83: 0 | I83: No. | J83: 0 | K83: 0 | L83: 0 | M83: 0 | N83: 0 | O83: 0
H84: Total | I84: No. | J84: =SUM(J69:J83) -> 395171.8427 | K84: 404146.1152 | L84: 410916.2527 | M84: 417807.3855 | N84: 424819.4027 | O84: 431952.4717
B87: =LEFT(B42,1)+1&". INPUT | Admin and handling" -> 6. INPUT | Admin and handling
B89: a | C89: Inputs - Admin Hourly Rate
D90: Admin Fees | E90: Units | G90: Rate
D91: Hourly Rate | E91: $dollars/hr (Real 26) | G91: 73.10198734
B94: b | C94: Inputs - Admin & Handling Costs (Execution costs)
D95: Admin Process Description | G95: Amount ($Fixed or Hours) | H95: Calculated or Entered | I95: Proportion required | K95: =FPFirstYear -> 2026-27 | L95: =LEFT(K95,4)+1&"-"&RIGHT(K95,2)+1 -> 2027-28 | M95: =LEFT(L95,4)+1&"-"&RIGHT(L95,2)+1 -> 2028-29 | N95: =LEFT(M95,4)+1&"-"&RIGHT(M95,2)+1 -> 2029-30 | O95: =LEFT(N95,4)+1&"-"&RIGHT(N95,2)+1 -> 2030-31
D96: Validate B2B and paperwork | G96: 0.08333333333 | H96: Entered | I96: 1 | K96: =$G$91*$G96*$I96*'Inputs | General'!H$27*'Inputs | General'!H$33 -> 6.304339336 | L96: =$G$91*$G96*$I96*'Inputs | General'!I$27*'Inputs | General'!I$33 -> 6.526216068 | M96: =$G$91*$G96*$I96*'Inputs | General'!J$27*'Inputs | General'!J$33 -> 6.770784799 | N96: =$G$91*$G96*$I96*'Inputs | General'!K$27*'Inputs | General'!K$33 -> 7.027309007 | O96: =$G$91*$G96*$I96*'Inputs | General'!L$27*'Inputs | General'!L$33 -> 7.286443272
D97: Write off meter from AMI SAP | G97: 0.08333333333 | H97: Entered | I97: 1 | K97: =$G$91*$G97*$I97*'Inputs | General'!H$27*'Inputs | General'!H$33 -> 6.304339336 | L97: =$G$91*$G97*$I97*'Inputs | General'!I$27*'Inputs | General'!I$33 -> 6.526216068 | M97: =$G$91*$G97*$I97*'Inputs | General'!J$27*'Inputs | General'!J$33 -> 6.770784799 | N97: =$G$91*$G97*$I97*'Inputs | General'!K$27*'Inputs | General'!K$33 -> 7.027309007 | O97: =$G$91*$G97*$I97*'Inputs | General'!L$27*'Inputs | General'!L$33 -> 7.286443272
D98: Update new meter detail in ERP SAP | G98: 0.08333333333 | H98: Entered | I98: 1 | K98: =$G$91*$G98*$I98*'Inputs | General'!H$27*'Inputs | General'!H$33 -> 6.304339336 | L98: =$G$91*$G98*$I98*'Inputs | General'!I$27*'Inputs | General'!I$33 -> 6.526216068 | M98: =$G$91*$G98*$I98*'Inputs | General'!J$27*'Inputs | General'!J$33 -> 6.770784799 | N98: =$G$91*$G98*$I98*'Inputs | General'!K$27*'Inputs | General'!K$33 -> 7.027309007 | O98: =$G$91*$G98*$I98*'Inputs | General'!L$27*'Inputs | General'!L$33 -> 7.286443272
D99: SAP ERP internal Service Order creation and close out | G99: 0.08333333333 | H99: Entered | I99: 1 | K99: =$G$91*$G99*$I99*'Inputs | General'!H$27*'Inputs | General'!H$33 -> 6.304339336 | L99: =$G$91*$G99*$I99*'Inputs | General'!I$27*'Inputs | General'!I$33 -> 6.526216068 | M99: =$G$91*$G99*$I99*'Inputs | General'!J$27*'Inputs | General'!J$33 -> 6.770784799 | N99: =$G$91*$G99*$I99*'Inputs | General'!K$27*'Inputs | General'!K$33 -> 7.027309007 | O99: =$G$91*$G99*$I99*'Inputs | General'!L$27*'Inputs | General'!L$33 -> 7.286443272
D100: Manage system exceptions, errors and reporting | G100: 0.25 | H100: Entered | I100: 0.2 | K100: =$G$91*$G100*$I100*'Inputs | General'!H$27*'Inputs | General'!H$33 -> 3.782603602 | L100: =$G$91*$G100*$I100*'Inputs | General'!I$27*'Inputs | General'!I$33 -> 3.915729641 | M100: =$G$91*$G100*$I100*'Inputs | General'!J$27*'Inputs | General'!J$33 -> 4.06247088 | N100: =$G$91*$G100*$I100*'Inputs | General'!K$27*'Inputs | General'!K$33 -> 4.216385404 | O100: =$G$91*$G100*$I100*'Inputs | General'!L$27*'Inputs | General'!L$33 -> 4.371865963
D101: Manage phone calls and inquiries | G101: 0.1666666667 | H101: Entered | I101: 0.2 | K101: =$G$91*$G101*$I101*'Inputs | General'!H$27*'Inputs | General'!H$33 -> 2.521735734 | L101: =$G$91*$G101*$I101*'Inputs | General'!I$27*'Inputs | General'!I$33 -> 2.610486427 | M101: =$G$91*$G101*$I101*'Inputs | General'!J$27*'Inputs | General'!J$33 -> 2.70831392 | N101: =$G$91*$G101*$I101*'Inputs | General'!K$27*'Inputs | General'!K$33 -> 2.810923603 | O101: =$G$91*$G101*$I101*'Inputs | General'!L$27*'Inputs | General'!L$33 -> 2.914577309
D102: Relays (Equipment and installation cost) | H102: Entered
D103: Access Points (Equipment and installation cost) | H103: Entered
D104: Decommission and meter disposal cost by Vendor | H104: Entered | K104: 27.26402625 | L104: 27.94562691 | M104: 28.64426758 | N104: 29.36037427 | O104: 30.09438363
B107: c | C107: Admin & Handling Cost Calculation (Autofilled)
D108: Admin Process Description | G108: Amount (Fixed or Hours) | H108: Calculated or Entered | I108: Proportion required | K108: =FPFirstYear -> 2026-27 | L108: =LEFT(K108,4)+1&"-"&RIGHT(K108,2)+1 -> 2027-28 | M108: =LEFT(L108,4)+1&"-"&RIGHT(L108,2)+1 -> 2028-29 | N108: =LEFT(M108,4)+1&"-"&RIGHT(M108,2)+1 -> 2029-30 | O108: =LEFT(N108,4)+1&"-"&RIGHT(N108,2)+1 -> 2030-31
D109: =D96 -> Validate B2B and paperwork | G109: =G96 -> 0.08333333333 | H109: Entered | I109: 1 | K109: =IF($H109="Calc-Fixed",$I109*$G109,IF($H109="Calc-Hourly",$G$91*$G109*$I109,IF($H109="Entered",K96,0))) -> 6.304339336 | L109: =IF($H109="Calc-Fixed",$I109*$G109,IF($H109="Calc-Hourly",$G$91*$G109*$I109,IF($H109="Entered",L96,0))) -> 6.526216068 | M109: 6.770784799 | N109: 7.027309007 | O109: 7.286443272
D110: Write off meter from AMI SAP | G110: 0.08333333333 | H110: Entered | I110: 1 | K110: 6.304339336 | L110: 6.526216068 | M110: 6.770784799 | N110: 7.027309007 | O110: 7.286443272
D111: Update new meter detail in ERP SAP | G111: 0.08333333333 | H111: Entered | I111: 1 | K111: 6.304339336 | L111: 6.526216068 | M111: 6.770784799 | N111: 7.027309007 | O111: 7.286443272
D112: SAP ERP internal Service Order creation and close out | G112: 0.08333333333 | H112: Entered | I112: 1 | K112: 6.304339336 | L112: 6.526216068 | M112: 6.770784799 | N112: 7.027309007 | O112: 7.286443272
D113: Manage system exceptions, errors and reporting | G113: 0.25 | H113: Entered | I113: 0.2 | K113: 3.782603602 | L113: 3.915729641 | M113: 4.06247088 | N113: 4.216385404 | O113: 4.371865963
D114: Manage phone calls and inquiries | G114: 0.1666666667 | H114: Entered | I114: 0.2 | K114: 2.521735734 | L114: 2.610486427 | M114: 2.70831392 | N114: 2.810923603 | O114: 2.914577309
D115: Relays (Equipment and installation cost) | G115: 0 | H115: Entered | I115: 0 | K115: 0 | L115: 0 | M115: 0 | N115: 0 | O115: 0
D116: Access Points (Equipment and installation cost) | G116: =G103 -> 0 | H116: Entered | I116: 0 | K116: =IF($H116="Calc-Fixed",$I116*$G116,IF($H116="Calc-Hourly",$G$91*$G116*$I116,IF($H116="Entered",K103,0))) -> 0 | L116: 0 | M116: 0 | N116: 0 | O116: 0
D117: Decommission and meter disposal cost by Vendor | G117: 0 | H117: Entered | I117: 0 | K117: 27.26402625 | L117: 27.94562691 | M117: 28.64426758 | N117: 29.36037427 | O117: 30.09438363
D118: 0 | G118: 0 | H118: 0 | I118: 0 | K118: 0 | L118: 0 | M118: 0 | N118: 0 | O118: 0
D119: TOTAL ADMIN and Handling | K119: =SUM(K109:K118) -> 58.78572293 | L119: =SUM(L109:L118) -> 60.57670725 | M119: =SUM(M109:M118) -> 62.49819158 | N119: =SUM(N109:N118) -> 64.4969193 | O119: =SUM(O109:O118) -> 66.52659998
B122: =LEFT('Input | Exit Fees'!B87,1)+1&". Linked Input - TAB" -> 7. Linked Input - TAB | J122: =IF('Inputs | General'!$G$16="Price Cap","NOT USED","") -> 
B124: Linked Input - TAB Meters | G124: Base Year | H124: Regulatory Period
E125: Units | G125: =LEFT(H125,4)-1&"-"&RIGHT(H125,2)-1 -> 2025-26 | H125: =FPFirstYear -> 2026-27 | I125: =LEFT(H125,4)+1&"-"&RIGHT(H125,2)+1 -> 2027-28 | J125: =LEFT(I125,4)+1&"-"&RIGHT(I125,2)+1 -> 2028-29 | K125: =LEFT(J125,4)+1&"-"&RIGHT(J125,2)+1 -> 2029-30 | L125: =LEFT(K125,4)+1&"-"&RIGHT(K125,2)+1 -> 2030-31 | M125: =LEFT(L125,4)+1&"-"&RIGHT(L125,2)+1 -> 2031-32
C126: Opening TAB | E126: $m | G126: 24.71197099 | H126: =G126+G127-G128 -> 24.71197099 | I126: 27.27098093 | J126: 36.75922102 | K126: 50.85908357 | L126: 66.40379813 | M126: 85.57312138 | N126: Opening tax balance of METERS row in PTRM inputs sheet of PTRM (nominal)
C127: Gross capital expenditure | E127: $m | H127: 6.934357924 | I127: 14.53152997 | J127: 20.81148894 | K127: 24.51213293 | L127: 28.71088305 | N127: Gross capex from METERS row in PTRM input sheet of PTRM (nominal)
C128: Tax depreciation | E128: $m | H128: 4.375347988 | I128: 5.043289871 | J128: 6.711626393 | K128: 8.967418369 | L128: 9.541559802 | N128: Tax Depreciation from METERS row in ASSETS sheet of PTRM (nominal)
B131: Linked Input - TAB Comms & IT & Other
E132: Units | G132: =LEFT(H132,4)-1&"-"&RIGHT(H132,2)-1 -> 2025-26 | H132: =FPFirstYear -> 2026-27 | I132: =LEFT(H132,4)+1&"-"&RIGHT(H132,2)+1 -> 2027-28 | J132: =LEFT(I132,4)+1&"-"&RIGHT(I132,2)+1 -> 2028-29 | K132: =LEFT(J132,4)+1&"-"&RIGHT(J132,2)+1 -> 2029-30 | L132: =LEFT(K132,4)+1&"-"&RIGHT(K132,2)+1 -> 2030-31 | M132: =LEFT(L132,4)+1&"-"&RIGHT(L132,2)+1 -> 2031-32
C133: Opening RAB | E133: $m | G133: 3.04816411 | H133: =G133+G134-G135 -> 3.04816411 | I133: 3.967610529 | J133: 4.221108869 | K133: 3.679817709 | L133: 3.310993024 | M133: 2.654842685 | N133: Opening tax balance of COMMS & IT & Inhouse Software & ERC rows from PTRM INPUTS sheet of PTRM (nominal)
C134: Gross capital expenditure less disposals | E134: $m | H134: 2.981068494 | I134: 3.215380001 | J134: 2.81382761 | K134: 2.849510207 | L134: 3.062412707 | N134: Gross capex from COMMS & IT & Inhouse Software & ERC rows in PTRM input sheet of PTRM (nominal)
C135: Tax depreciation | E135: $m | H135: 2.061622074 | I135: 2.96188166 | J135: 3.35511877 | K135: 3.218334892 | L135: 3.718563047 | N135: Tax Depreciation from COMMS & IT & Inhouse Software & ERC rows in ASSETS sheet of PTRM (nominal)
E138: Units | G138: =LEFT(H138,4)-1&"-"&RIGHT(H138,2)-1 -> 2025-26 | H138: =FPFirstYear -> 2026-27 | I138: =LEFT(H138,4)+1&"-"&RIGHT(H138,2)+1 -> 2027-28 | J138: =LEFT(I138,4)+1&"-"&RIGHT(I138,2)+1 -> 2028-29 | K138: =LEFT(J138,4)+1&"-"&RIGHT(J138,2)+1 -> 2029-30 | L138: =LEFT(K138,4)+1&"-"&RIGHT(K138,2)+1 -> 2030-31 | M138: =LEFT(L138,4)+1&"-"&RIGHT(L138,2)+1 -> 2031-32
B139: TOTAL Opening TAB | E139: $m | G139: =G126+G133 -> 27.7601351 | H139: 27.7601351 | I139: 31.23859146 | J139: 40.98032989 | K139: 54.53890128 | L139: 69.71479115 | M139: 88.22796406

Sheet Calc | Exit Fees
B1: ='Title Page'!B8&" v"&'Title Page'!$C$10 -> JEN 2027-31 - ACS Standardised Metering Pricing Model v1.02 | M1: DNSP: | N1: =IF('Inputs | General'!$G$16="Price Cap","NOT USED",NSP) -> JEN - ACS
B2: =MID(CELL("filename",A1),FIND("]",CELL("filename",A1))+1,255) -> Calc | Exit Fees | H2: Key: | I2: Input | J2: External Link | K2: Internal Link | L2: Jemena modification
B5: CALCULATION | Meters
B7: Calculation of Allocated Meters RAB by Designated Exit Fee
E10: Average number of meters (Year, Year-1) | K10: Average number of meters (Year, Year-1)
F11: ='Input | Exit Fees'!H68 -> Meter Type | G11: ='Input | Exit Fees'!I68 -> Units | H11: Designated Exit Fee | K11: =FPFirstYear -> 2026-27 | L11: =LEFT(K11,4)+1&"-"&RIGHT(K11,2)+1 -> 2027-28 | M11: =LEFT(L11,4)+1&"-"&RIGHT(L11,2)+1 -> 2028-29 | N11: =LEFT(M11,4)+1&"-"&RIGHT(M11,2)+1 -> 2029-30 | O11: =LEFT(N11,4)+1&"-"&RIGHT(N11,2)+1 -> 2030-31
F12: ='Input | Exit Fees'!H69 -> Single Phase (inc. DC) | G12: No. | H12: ='Input | Exit Fees'!D49 -> Single Phase (inc. DC) | K12: =IFERROR(AVERAGE('Input | Exit Fees'!J69:K69),0) -> 306881.3132 | L12: =IFERROR(AVERAGE('Input | Exit Fees'!K69:L69),0) -> 305471.6012 | M12: =IFERROR(AVERAGE('Input | Exit Fees'!L69:M69),0) -> 303726.306 | N12: =IFERROR(AVERAGE('Input | Exit Fees'!M69:N69),0) -> 301950.1094 | O12: =IFERROR(AVERAGE('Input | Exit Fees'!N69:O69),0) -> 300143.0042
F13: ='Input | Exit Fees'!H70 -> Single Phase, Two Element | G13: No. | H13: ='Input | Exit Fees'!D50 -> Single Phase, Two Element | K13: =IFERROR(AVERAGE('Input | Exit Fees'!J70:K70),0) -> 20366.6795 | L13: =IFERROR(AVERAGE('Input | Exit Fees'!K70:L70),0) -> 19995.21439 | M13: =IFERROR(AVERAGE('Input | Exit Fees'!L70:M70),0) -> 19617.03835 | N13: =IFERROR(AVERAGE('Input | Exit Fees'!M70:N70),0) -> 19232.16651 | O13: =IFERROR(AVERAGE('Input | Exit Fees'!N70:O70),0) -> 18840.5973
F14: ='Input | Exit Fees'!H71 -> Three Phase (inc. DC) | G14: No. | H14: ='Input | Exit Fees'!D51 -> Three Phase (inc. DC) | K14: =IFERROR(AVERAGE('Input | Exit Fees'!J71:K71),0) -> 69646.77785 | L14: =IFERROR(AVERAGE('Input | Exit Fees'!K71:L71),0) -> 79116.66869 | M14: =IFERROR(AVERAGE('Input | Exit Fees'!L71:M71),0) -> 87883.18826 | N14: =IFERROR(AVERAGE('Input | Exit Fees'!M71:N71),0) -> 96804.92357 | O14: =IFERROR(AVERAGE('Input | Exit Fees'!N71:O71),0) -> 105881.9108
F15: ='Input | Exit Fees'!H72 -> Three Phase CT | G15: No. | H15: ='Input | Exit Fees'!D52 -> Three Phase CT | K15: =IFERROR(AVERAGE('Input | Exit Fees'!J72:K72),0) -> 2764.208464 | L15: =IFERROR(AVERAGE('Input | Exit Fees'!K72:L72),0) -> 2947.699654 | M15: =IFERROR(AVERAGE('Input | Exit Fees'!L72:M72),0) -> 3135.286492 | N15: =IFERROR(AVERAGE('Input | Exit Fees'!M72:N72),0) -> 3326.194651 | O15: =IFERROR(AVERAGE('Input | Exit Fees'!N72:O72),0) -> 3520.424906
F16: ='Input | Exit Fees'!H73 -> 0 | G16: No. | H16: ='Input | Exit Fees'!D53 -> 0 | K16: =IFERROR(AVERAGE('Input | Exit Fees'!J73:K73),0) -> 0 | L16: =IFERROR(AVERAGE('Input | Exit Fees'!K73:L73),0) -> 0 | M16: =IFERROR(AVERAGE('Input | Exit Fees'!L73:M73),0) -> 0 | N16: =IFERROR(AVERAGE('Input | Exit Fees'!M73:N73),0) -> 0 | O16: =IFERROR(AVERAGE('Input | Exit Fees'!N73:O73),0) -> 0
F17: ='Input | Exit Fees'!H74 -> 0 | G17: No. | H17: ='Input | Exit Fees'!D54 -> 0 | K17: =IFERROR(AVERAGE('Input | Exit Fees'!J74:K74),0) -> 0 | L17: =IFERROR(AVERAGE('Input | Exit Fees'!K74:L74),0) -> 0 | M17: =IFERROR(AVERAGE('Input | Exit Fees'!L74:M74),0) -> 0 | N17: =IFERROR(AVERAGE('Input | Exit Fees'!M74:N74),0) -> 0 | O17: =IFERROR(AVERAGE('Input | Exit Fees'!N74:O74),0) -> 0
F18: ='Input | Exit Fees'!H75 -> 0 | G18: No. | H18: ='Input | Exit Fees'!D55 -> 0 | K18: =IFERROR(AVERAGE('Input | Exit Fees'!J75:K75),0) -> 0 | L18: =IFERROR(AVERAGE('Input | Exit Fees'!K75:L75),0) -> 0 | M18: =IFERROR(AVERAGE('Input | Exit Fees'!L75:M75),0) -> 0 | N18: =IFERROR(AVERAGE('Input | Exit Fees'!M75:N75),0) -> 0 | O18: =IFERROR(AVERAGE('Input | Exit Fees'!N75:O75),0) -> 0
F19: ='Input | Exit Fees'!H76 -> 0 | G19: No. | H19: ='Input | Exit Fees'!D56 -> 0 | K19: =IFERROR(AVERAGE('Input | Exit Fees'!J76:K76),0) -> 0 | L19: =IFERROR(AVERAGE('Input | Exit Fees'!K76:L76),0) -> 0 | M19: =IFERROR(AVERAGE('Input | Exit Fees'!L76:M76),0) -> 0 | N19: =IFERROR(AVERAGE('Input | Exit Fees'!M76:N76),0) -> 0 | O19: =IFERROR(AVERAGE('Input | Exit Fees'!N76:O76),0) -> 0
F20: ='Input | Exit Fees'!H77 -> 0 | G20: No. | H20: ='Input | Exit Fees'!D57 -> 0 | K20: =IFERROR(AVERAGE('Input | Exit Fees'!J77:K77),0) -> 0 | L20: =IFERROR(AVERAGE('Input | Exit Fees'!K77:L77),0) -> 0 | M20: =IFERROR(AVERAGE('Input | Exit Fees'!L77:M77),0) -> 0 | N20: =IFERROR(AVERAGE('Input | Exit Fees'!M77:N77),0) -> 0 | O20: =IFERROR(AVERAGE('Input | Exit Fees'!N77:O77),0) -> 0
F21: ='Input | Exit Fees'!H78 -> 0 | G21: No. | H21: ='Input | Exit Fees'!D58 -> 0 | K21: =IFERROR(AVERAGE('Input | Exit Fees'!J78:K78),0) -> 0 | L21: =IFERROR(AVERAGE('Input | Exit Fees'!K78:L78),0) -> 0 | M21: =IFERROR(AVERAGE('Input | Exit Fees'!L78:M78),0) -> 0 | N21: =IFERROR(AVERAGE('Input | Exit Fees'!M78:N78),0) -> 0 | O21: =IFERROR(AVERAGE('Input | Exit Fees'!N78:O78),0) -> 0
F22: ='Input | Exit Fees'!H79 -> 0 | G22: No. | H22: ='Input | Exit Fees'!D59 -> 0 | K22: =IFERROR(AVERAGE('Input | Exit Fees'!J79:K79),0) -> 0 | L22: =IFERROR(AVERAGE('Input | Exit Fees'!K79:L79),0) -> 0 | M22: =IFERROR(AVERAGE('Input | Exit Fees'!L79:M79),0) -> 0 | N22: =IFERROR(AVERAGE('Input | Exit Fees'!M79:N79),0) -> 0 | O22: =IFERROR(AVERAGE('Input | Exit Fees'!N79:O79),0) -> 0
F23: ='Input | Exit Fees'!H80 -> 0 | G23: No. | H23: ='Input | Exit Fees'!D60 -> 0 | K23: =IFERROR(AVERAGE('Input | Exit Fees'!J80:K80),0) -> 0 | L23: =IFERROR(AVERAGE('Input | Exit Fees'!K80:L80),0) -> 0 | M23: =IFERROR(AVERAGE('Input | Exit Fees'!L80:M80),0) -> 0 | N23: =IFERROR(AVERAGE('Input | Exit Fees'!M80:N80),0) -> 0 | O23: =IFERROR(AVERAGE('Input | Exit Fees'!N80:O80),0) -> 0
F24: ='Input | Exit Fees'!H81 -> 0 | G24: No. | H24: ='Input | Exit Fees'!D61 -> 0 | K24: =IFERROR(AVERAGE('Input | Exit Fees'!J81:K81),0) -> 0 | L24: =IFERROR(AVERAGE('Input | Exit Fees'!K81:L81),0) -> 0 | M24: =IFERROR(AVERAGE('Input | Exit Fees'!L81:M81),0) -> 0 | N24: =IFERROR(AVERAGE('Input | Exit Fees'!M81:N81),0) -> 0 | O24: =IFERROR(AVERAGE('Input | Exit Fees'!N81:O81),0) -> 0
F25: ='Input | Exit Fees'!H82 -> 0 | G25: No. | H25: ='Input | Exit Fees'!D62 -> 0 | K25: =IFERROR(AVERAGE('Input | Exit Fees'!J82:K82),0) -> 0 | L25: =IFERROR(AVERAGE('Input | Exit Fees'!K82:L82),0) -> 0 | M25: =IFERROR(AVERAGE('Input | Exit Fees'!L82:M82),0) -> 0 | N25: =IFERROR(AVERAGE('Input | Exit Fees'!M82:N82),0) -> 0 | O25: =IFERROR(AVERAGE('Input | Exit Fees'!N82:O82),0) -> 0
F26: ='Input | Exit Fees'!H83 -> 0 | G26: No. | H26: ='Input | Exit Fees'!D63 -> 0 | K26: =IFERROR(AVERAGE('Input | Exit Fees'!J83:K83),0) -> 0 | L26: =IFERROR(AVERAGE('Input | Exit Fees'!K83:L83),0) -> 0 | M26: =IFERROR(AVERAGE('Input | Exit Fees'!L83:M83),0) -> 0 | N26: =IFERROR(AVERAGE('Input | Exit Fees'!M83:N83),0) -> 0 | O26: =IFERROR(AVERAGE('Input | Exit Fees'!N83:O83),0) -> 0
F27: ='Input | Exit Fees'!H84 -> Total | G27: No. | K27: =SUM(K12:K26) -> 399658.979 | L27: =SUM(L12:L26) -> 407531.184 | M27: =SUM(M12:M26) -> 414361.8191 | N27: =SUM(N12:N26) -> 421313.3941 | O27: =SUM(O12:O26) -> 428385.9372
E29: Volume of meters | J29: End Year Vol | K29: Regulatory period
F30: Exit Fee | G30: Units | J30: =LEFT(K30,4)-1&"-"&RIGHT(K30,2)-1 -> 2025-26 | K30: =FPFirstYear -> 2026-27 | L30: =LEFT(K30,4)+1&"-"&RIGHT(K30,2)+1 -> 2027-28 | M30: =LEFT(L30,4)+1&"-"&RIGHT(L30,2)+1 -> 2028-29 | N30: =LEFT(M30,4)+1&"-"&RIGHT(M30,2)+1 -> 2029-30 | O30: =LEFT(N30,4)+1&"-"&RIGHT(N30,2)+1 -> 2030-31
F31: ='Input | Exit Fees'!$D29 -> Single Phase (inc. DC) | G31: No. | J31: =IF($F31=0,0,SUMPRODUCT('Input | Exit Fees'!$J$69:$J$83,($H$12:$H$26=$F31)/1)) -> 307426.1063 | K31: =IF($F31=0,0,SUMPRODUCT(K$12:K$26,($H$12:$H$26=$F31)/1)) -> 306881.3132 | L31: =IF($F31=0,0,SUMPRODUCT(L$12:L$26,($H$12:$H$26=$F31)/1)) -> 305471.6012 | M31: =IF($F31=0,0,SUMPRODUCT(M$12:M$26,($H$12:$H$26=$F31)/1)) -> 303726.306 | N31: =IF($F31=0,0,SUMPRODUCT(N$12:N$26,($H$12:$H$26=$F31)/1)) -> 301950.1094 | O31: =IF($F31=0,0,SUMPRODUCT(O$12:O$26,($H$12:$H$26=$F31)/1)) -> 300143.0042
F32: ='Input | Exit Fees'!$D30 -> Single Phase, Two Element | G32: No. | J32: =IF($F32=0,0,SUMPRODUCT('Input | Exit Fees'!$J$69:$J$83,($H$12:$H$26=$F32)/1)) -> 20550.73132 | K32: =IF($F32=0,0,SUMPRODUCT(K$12:K$26,($H$12:$H$26=$F32)/1)) -> 20366.6795 | L32: =IF($F32=0,0,SUMPRODUCT(L$12:L$26,($H$12:$H$26=$F32)/1)) -> 19995.21439 | M32: =IF($F32=0,0,SUMPRODUCT(M$12:M$26,($H$12:$H$26=$F32)/1)) -> 19617.03835 | N32: =IF($F32=0,0,SUMPRODUCT(N$12:N$26,($H$12:$H$26=$F32)/1)) -> 19232.16651 | O32: =IF($F32=0,0,SUMPRODUCT(O$12:O$26,($H$12:$H$26=$F32)/1)) -> 18840.5973
F33: ='Input | Exit Fees'!$D31 -> Three Phase (inc. DC) | G33: No. | J33: =IF($F33=0,0,SUMPRODUCT('Input | Exit Fees'!$J$69:$J$83,($H$12:$H$26=$F33)/1)) -> 64521.32509 | K33: =IF($F33=0,0,SUMPRODUCT(K$12:K$26,($H$12:$H$26=$F33)/1)) -> 69646.77785 | L33: =IF($F33=0,0,SUMPRODUCT(L$12:L$26,($H$12:$H$26=$F33)/1)) -> 79116.66869 | M33: =IF($F33=0,0,SUMPRODUCT(M$12:M$26,($H$12:$H$26=$F33)/1)) -> 87883.18826 | N33: =IF($F33=0,0,SUMPRODUCT(N$12:N$26,($H$12:$H$26=$F33)/1)) -> 96804.92357 | O33: =IF($F33=0,0,SUMPRODUCT(O$12:O$26,($H$12:$H$26=$F33)/1)) -> 105881.9108
F34: ='Input | Exit Fees'!$D32 -> Three Phase CT | G34: No. | J34: =IF($F34=0,0,SUMPRODUCT('Input | Exit Fees'!$J$69:$J$83,($H$12:$H$26=$F34)/1)) -> 2673.679982 | K34: =IF($F34=0,0,SUMPRODUCT(K$12:K$26,($H$12:$H$26=$F34)/1)) -> 2764.208464 | L34: =IF($F34=0,0,SUMPRODUCT(L$12:L$26,($H$12:$H$26=$F34)/1)) -> 2947.699654 | M34: =IF($F34=0,0,SUMPRODUCT(M$12:M$26,($H$12:$H$26=$F34)/1)) -> 3135.286492 | N34: =IF($F34=0,0,SUMPRODUCT(N$12:N$26,($H$12:$H$26=$F34)/1)) -> 3326.194651 | O34: =IF($F34=0,0,SUMPRODUCT(O$12:O$26,($H$12:$H$26=$F34)/1)) -> 3520.424906
F35: ='Input | Exit Fees'!$D33 -> 0 | G35: No. | J35: =IF($F35=0,0,SUMPRODUCT('Input | Exit Fees'!$J$69:$J$83,($H$12:$H$26=$F35)/1)) -> 0 | K35: =IF($F35=0,0,SUMPRODUCT(K$12:K$26,($H$12:$H$26=$F35)/1)) -> 0 | L35: =IF($F35=0,0,SUMPRODUCT(L$12:L$26,($H$12:$H$26=$F35)/1)) -> 0 | M35: =IF($F35=0,0,SUMPRODUCT(M$12:M$26,($H$12:$H$26=$F35)/1)) -> 0 | N35: =IF($F35=0,0,SUMPRODUCT(N$12:N$26,($H$12:$H$26=$F35)/1)) -> 0 | O35: =IF($F35=0,0,SUMPRODUCT(O$12:O$26,($H$12:$H$26=$F35)/1)) -> 0
F36: ='Input | Exit Fees'!$D34 -> 0 | G36: No. | J36: =IF($F36=0,0,SUMPRODUCT('Input | Exit Fees'!$J$69:$J$83,($H$12:$H$26=$F36)/1)) -> 0 | K36: =IF($F36=0,0,SUMPRODUCT(K$12:K$26,($H$12:$H$26=$F36)/1)) -> 0 | L36: =IF($F36=0,0,SUMPRODUCT(L$12:L$26,($H$12:$H$26=$F36)/1)) -> 0 | M36: =IF($F36=0,0,SUMPRODUCT(M$12:M$26,($H$12:$H$26=$F36)/1)) -> 0 | N36: =IF($F36=0,0,SUMPRODUCT(N$12:N$26,($H$12:$H$26=$F36)/1)) -> 0 | O36: =IF($F36=0,0,SUMPRODUCT(O$12:O$26,($H$12:$H$26=$F36)/1)) -> 0
F37: ='Input | Exit Fees'!$D35 -> 0 | G37: No. | J37: =IF($F37=0,0,SUMPRODUCT('Input | Exit Fees'!$J$69:$J$83,($H$12:$H$26=$F37)/1)) -> 0 | K37: =IF($F37=0,0,SUMPRODUCT(K$12:K$26,($H$12:$H$26=$F37)/1)) -> 0 | L37: =IF($F37=0,0,SUMPRODUCT(L$12:L$26,($H$12:$H$26=$F37)/1)) -> 0 | M37: =IF($F37=0,0,SUMPRODUCT(M$12:M$26,($H$12:$H$26=$F37)/1)) -> 0 | N37: =IF($F37=0,0,SUMPRODUCT(N$12:N$26,($H$12:$H$26=$F37)/1)) -> 0 | O37: =IF($F37=0,0,SUMPRODUCT(O$12:O$26,($H$12:$H$26=$F37)/1)) -> 0
F38: ='Input | Exit Fees'!$D36 -> 0 | G38: No. | J38: =IF($F38=0,0,SUMPRODUCT('Input | Exit Fees'!$J$69:$J$83,($H$12:$H$26=$F38)/1)) -> 0 | K38: =IF($F38=0,0,SUMPRODUCT(K$12:K$26,($H$12:$H$26=$F38)/1)) -> 0 | L38: =IF($F38=0,0,SUMPRODUCT(L$12:L$26,($H$12:$H$26=$F38)/1)) -> 0 | M38: =IF($F38=0,0,SUMPRODUCT(M$12:M$26,($H$12:$H$26=$F38)/1)) -> 0 | N38: =IF($F38=0,0,SUMPRODUCT(N$12:N$26,($H$12:$H$26=$F38)/1)) -> 0 | O38: =IF($F38=0,0,SUMPRODUCT(O$12:O$26,($H$12:$H$26=$F38)/1)) -> 0
F39: ='Input | Exit Fees'!$D37 -> 0 | G39: No. | J39: =IF($F39=0,0,SUMPRODUCT('Input | Exit Fees'!$J$69:$J$83,($H$12:$H$26=$F39)/1)) -> 0 | K39: =IF($F39=0,0,SUMPRODUCT(K$12:K$26,($H$12:$H$26=$F39)/1)) -> 0 | L39: =IF($F39=0,0,SUMPRODUCT(L$12:L$26,($H$12:$H$26=$F39)/1)) -> 0 | M39: =IF($F39=0,0,SUMPRODUCT(M$12:M$26,($H$12:$H$26=$F39)/1)) -> 0 | N39: =IF($F39=0,0,SUMPRODUCT(N$12:N$26,($H$12:$H$26=$F39)/1)) -> 0 | O39: =IF($F39=0,0,SUMPRODUCT(O$12:O$26,($H$12:$H$26=$F39)/1)) -> 0
F40: ='Input | Exit Fees'!$D38 -> 0 | G40: No. | J40: =IF($F40=0,0,SUMPRODUCT('Input | Exit Fees'!$J$69:$J$83,($H$12:$H$26=$F40)/1)) -> 0 | K40: =IF($F40=0,0,SUMPRODUCT(K$12:K$26,($H$12:$H$26=$F40)/1)) -> 0 | L40: =IF($F40=0,0,SUMPRODUCT(L$12:L$26,($H$12:$H$26=$F40)/1)) -> 0 | M40: =IF($F40=0,0,SUMPRODUCT(M$12:M$26,($H$12:$H$26=$F40)/1)) -> 0 | N40: =IF($F40=0,0,SUMPRODUCT(N$12:N$26,($H$12:$H$26=$F40)/1)) -> 0 | O40: =IF($F40=0,0,SUMPRODUCT(O$12:O$26,($H$12:$H$26=$F40)/1)) -> 0
F41: Total | G41: No. | J41: =SUM(J31:J40) -> 395171.8427 | K41: 399658.979 | L41: 407531.184 | M41: 414361.8191 | N41: 421313.3941 | O41: 428385.9372
E44: Cost-Weighted Volume of Meters | K44: Regulatory period
F45: Exit Fee | G45: Units | K45: =FPFirstYear -> 2026-27 | L45: =LEFT(K45,4)+1&"-"&RIGHT(K45,2)+1 -> 2027-28 | M45: =LEFT(L45,4)+1&"-"&RIGHT(L45,2)+1 -> 2028-29 | N45: =LEFT(M45,4)+1&"-"&RIGHT(M45,2)+1 -> 2029-30 | O45: =LEFT(N45,4)+1&"-"&RIGHT(N45,2)+1 -> 2030-31
F46: ='Input | Exit Fees'!$D29 -> Single Phase (inc. DC) | G46: $dollars | K46: =SUMPRODUCT('Input | Exit Fees'!$M$49:$M$63,K$12:K$26,($H$12:$H$26=$F46)/1) -> 126248331.8 | L46: =SUMPRODUCT('Input | Exit Fees'!$M$49:$M$63,L$12:L$26,($H$12:$H$26=$F46)/1) -> 125668388.5 | M46: =SUMPRODUCT('Input | Exit Fees'!$M$49:$M$63,M$12:M$26,($H$12:$H$26=$F46)/1) -> 124950389 | N46: =SUMPRODUCT('Input | Exit Fees'!$M$49:$M$63,N$12:N$26,($H$12:$H$26=$F46)/1) -> 124219677 | O46: =SUMPRODUCT('Input | Exit Fees'!$M$49:$M$63,O$12:O$26,($H$12:$H$26=$F46)/1) -> 123476249.5
F47: ='Input | Exit Fees'!$D30 -> Single Phase, Two Element | G47: $dollars | K47: =SUMPRODUCT('Input | Exit Fees'!$M$49:$M$63,K$12:K$26,($H$12:$H$26=$F47)/1) -> 9136423.565 | L47: =SUMPRODUCT('Input | Exit Fees'!$M$49:$M$63,L$12:L$26,($H$12:$H$26=$F47)/1) -> 8969785.57 | M47: =SUMPRODUCT('Input | Exit Fees'!$M$49:$M$63,M$12:M$26,($H$12:$H$26=$F47)/1) -> 8800137.077 | N47: =SUMPRODUCT('Input | Exit Fees'!$M$49:$M$63,N$12:N$26,($H$12:$H$26=$F47)/1) -> 8627484.871 | O47: =SUMPRODUCT('Input | Exit Fees'!$M$49:$M$63,O$12:O$26,($H$12:$H$26=$F47)/1) -> 8451828.25
F48: ='Input | Exit Fees'!$D31 -> Three Phase (inc. DC) | G48: $dollars | K48: =SUMPRODUCT('Input | Exit Fees'!$M$49:$M$63,K$12:K$26,($H$12:$H$26=$F48)/1) -> 40845788.32 | L48: =SUMPRODUCT('Input | Exit Fees'!$M$49:$M$63,L$12:L$26,($H$12:$H$26=$F48)/1) -> 46399600.98 | M48: =SUMPRODUCT('Input | Exit Fees'!$M$49:$M$63,M$12:M$26,($H$12:$H$26=$F48)/1) -> 51540907.07 | N48: =SUMPRODUCT('Input | Exit Fees'!$M$49:$M$63,N$12:N$26,($H$12:$H$26=$F48)/1) -> 56773242.62 | O48: =SUMPRODUCT('Input | Exit Fees'!$M$49:$M$63,O$12:O$26,($H$12:$H$26=$F48)/1) -> 62096628.88
F49: ='Input | Exit Fees'!$D32 -> Three Phase CT | G49: $dollars | K49: =SUMPRODUCT('Input | Exit Fees'!$M$49:$M$63,K$12:K$26,($H$12:$H$26=$F49)/1) -> 2373596.994 | L49: =SUMPRODUCT('Input | Exit Fees'!$M$49:$M$63,L$12:L$26,($H$12:$H$26=$F49)/1) -> 2531158.967 | M49: =SUMPRODUCT('Input | Exit Fees'!$M$49:$M$63,M$12:M$26,($H$12:$H$26=$F49)/1) -> 2692237.829 | N49: =SUMPRODUCT('Input | Exit Fees'!$M$49:$M$63,N$12:N$26,($H$12:$H$26=$F49)/1) -> 2856168.675 | O49: =SUMPRODUCT('Input | Exit Fees'!$M$49:$M$63,O$12:O$26,($H$12:$H$26=$F49)/1) -> 3022952.17
F50: ='Input | Exit Fees'!$D33 -> 0 | G50: $dollars | K50: =SUMPRODUCT('Input | Exit Fees'!$M$49:$M$63,K$12:K$26,($H$12:$H$26=$F50)/1) -> 0 | L50: =SUMPRODUCT('Input | Exit Fees'!$M$49:$M$63,L$12:L$26,($H$12:$H$26=$F50)/1) -> 0 | M50: =SUMPRODUCT('Input | Exit Fees'!$M$49:$M$63,M$12:M$26,($H$12:$H$26=$F50)/1) -> 0 | N50: =SUMPRODUCT('Input | Exit Fees'!$M$49:$M$63,N$12:N$26,($H$12:$H$26=$F50)/1) -> 0 | O50: =SUMPRODUCT('Input | Exit Fees'!$M$49:$M$63,O$12:O$26,($H$12:$H$26=$F50)/1) -> 0
F51: ='Input | Exit Fees'!$D34 -> 0 | G51: $dollars | K51: =SUMPRODUCT('Input | Exit Fees'!$M$49:$M$63,K$12:K$26,($H$12:$H$26=$F51)/1) -> 0 | L51: =SUMPRODUCT('Input | Exit Fees'!$M$49:$M$63,L$12:L$26,($H$12:$H$26=$F51)/1) -> 0 | M51: =SUMPRODUCT('Input | Exit Fees'!$M$49:$M$63,M$12:M$26,($H$12:$H$26=$F51)/1) -> 0 | N51: =SUMPRODUCT('Input | Exit Fees'!$M$49:$M$63,N$12:N$26,($H$12:$H$26=$F51)/1) -> 0 | O51: =SUMPRODUCT('Input | Exit Fees'!$M$49:$M$63,O$12:O$26,($H$12:$H$26=$F51)/1) -> 0
F52: ='Input | Exit Fees'!$D35 -> 0 | G52: $dollars | K52: =SUMPRODUCT('Input | Exit Fees'!$M$49:$M$63,K$12:K$26,($H$12:$H$26=$F52)/1) -> 0 | L52: =SUMPRODUCT('Input | Exit Fees'!$M$49:$M$63,L$12:L$26,($H$12:$H$26=$F52)/1) -> 0 | M52: =SUMPRODUCT('Input | Exit Fees'!$M$49:$M$63,M$12:M$26,($H$12:$H$26=$F52)/1) -> 0 | N52: =SUMPRODUCT('Input | Exit Fees'!$M$49:$M$63,N$12:N$26,($H$12:$H$26=$F52)/1) -> 0 | O52: =SUMPRODUCT('Input | Exit Fees'!$M$49:$M$63,O$12:O$26,($H$12:$H$26=$F52)/1) -> 0
F53: ='Input | Exit Fees'!$D36 -> 0 | G53: $dollars | K53: =SUMPRODUCT('Input | Exit Fees'!$M$49:$M$63,K$12:K$26,($H$12:$H$26=$F53)/1) -> 0 | L53: =SUMPRODUCT('Input | Exit Fees'!$M$49:$M$63,L$12:L$26,($H$12:$H$26=$F53)/1) -> 0 | M53: =SUMPRODUCT('Input | Exit Fees'!$M$49:$M$63,M$12:M$26,($H$12:$H$26=$F53)/1) -> 0 | N53: =SUMPRODUCT('Input | Exit Fees'!$M$49:$M$63,N$12:N$26,($H$12:$H$26=$F53)/1) -> 0 | O53: =SUMPRODUCT('Input | Exit Fees'!$M$49:$M$63,O$12:O$26,($H$12:$H$26=$F53)/1) -> 0
F54: ='Input | Exit Fees'!$D37 -> 0 | G54: $dollars | K54: =SUMPRODUCT('Input | Exit Fees'!$M$49:$M$63,K$12:K$26,($H$12:$H$26=$F54)/1) -> 0 | L54: =SUMPRODUCT('Input | Exit Fees'!$M$49:$M$63,L$12:L$26,($H$12:$H$26=$F54)/1) -> 0 | M54: =SUMPRODUCT('Input | Exit Fees'!$M$49:$M$63,M$12:M$26,($H$12:$H$26=$F54)/1) -> 0 | N54: =SUMPRODUCT('Input | Exit Fees'!$M$49:$M$63,N$12:N$26,($H$12:$H$26=$F54)/1) -> 0 | O54: =SUMPRODUCT('Input | Exit Fees'!$M$49:$M$63,O$12:O$26,($H$12:$H$26=$F54)/1) -> 0
F55: ='Input | Exit Fees'!$D38 -> 0 | G55: $dollars | K55: =SUMPRODUCT('Input | Exit Fees'!$M$49:$M$63,K$12:K$26,($H$12:$H$26=$F55)/1) -> 0 | L55: =SUMPRODUCT('Input | Exit Fees'!$M$49:$M$63,L$12:L$26,($H$12:$H$26=$F55)/1) -> 0 | M55: =SUMPRODUCT('Input | Exit Fees'!$M$49:$M$63,M$12:M$26,($H$12:$H$26=$F55)/1) -> 0 | N55: =SUMPRODUCT('Input | Exit Fees'!$M$49:$M$63,N$12:N$26,($H$12:$H$26=$F55)/1) -> 0 | O55: =SUMPRODUCT('Input | Exit Fees'!$M$49:$M$63,O$12:O$26,($H$12:$H$26=$F55)/1) -> 0
F56: Total | G56: $dollars | K56: =SUM(K46:K55) -> 178604140.7 | L56: =SUM(L46:L55) -> 183568934 | M56: =SUM(M46:M55) -> 187983671 | N56: =SUM(N46:N55) -> 192476573.2 | O56: =SUM(O46:O55) -> 197047658.8
E59: Proportionate Volume-Weighted Costs | K59: Regulatory period
F60: Exit Fee | G60: Units | K60: =FPFirstYear -> 2026-27 | L60: =LEFT(K60,4)+1&"-"&RIGHT(K60,2)+1 -> 2027-28 | M60: =LEFT(L60,4)+1&"-"&RIGHT(L60,2)+1 -> 2028-29 | N60: =LEFT(M60,4)+1&"-"&RIGHT(M60,2)+1 -> 2029-30 | O60: =LEFT(N60,4)+1&"-"&RIGHT(N60,2)+1 -> 2030-31
F61: ='Input | Exit Fees'!$D29 -> Single Phase (inc. DC) | G61: % | K61: =K46/K$56 -> 0.7068611698 | L61: 0.6845841817 | M61: 0.6646874612 | N61: 0.6453755642 | O61: 0.6266313959
F62: ='Input | Exit Fees'!$D30 -> Single Phase, Two Element | G62: % | K62: 0.05115460106 | L62: 0.04886330914 | M62: 0.04681330581 | N62: 0.04482355815 | O62: 0.04289230485
F63: ='Input | Exit Fees'!$D31 -> Three Phase (inc. DC) | G63: % | K63: 0.2286945205 | L63: 0.2527639071 | M63: 0.2741775751 | N63: 0.2949618319 | O63: 0.3151350758
F64: ='Input | Exit Fees'!$D32 -> Three Phase CT | G64: % | K64: 0.01328970865 | L64: 0.01378860198 | M64: 0.01432165791 | N64: 0.01483904575 | O64: 0.01534122348
F65: ='Input | Exit Fees'!$D33 -> 0 | G65: % | K65: 0 | L65: 0 | M65: 0 | N65: 0 | O65: 0
F66: ='Input | Exit Fees'!$D34 -> 0 | G66: % | K66: 0 | L66: 0 | M66: 0 | N66: 0 | O66: 0
F67: ='Input | Exit Fees'!$D35 -> 0 | G67: % | K67: 0 | L67: 0 | M67: 0 | N67: 0 | O67: 0
F68: ='Input | Exit Fees'!$D36 -> 0 | G68: % | K68: 0 | L68: 0 | M68: 0 | N68: 0 | O68: 0
F69: ='Input | Exit Fees'!$D37 -> 0 | G69: % | K69: 0 | L69: 0 | M69: 0 | N69: 0 | O69: 0
F70: ='Input | Exit Fees'!$D38 -> 0 | G70: % | K70: 0 | L70: 0 | M70: 0 | N70: 0 | O70: 0
F71: Total | G71: % | K71: =SUM(K61:K70) -> 1 | L71: =SUM(L61:L70) -> 1 | M71: =SUM(M61:M70) -> 1 | N71: =SUM(N61:N70) -> 1 | O71: =SUM(O61:O70) -> 1
A72: =PRODUCT(J72:O72) -> 1 | K72: =(K71=1)/1 -> 1 | L72: =(L71=1)/1 -> 1 | M72: =(M71=1)/1 -> 1 | N72: =(N71=1)/1 -> 1 | O72: =(O71=1)/1 -> 1
E75: Allocated Meter RAB by Designated Exit Fee | K75: Regulatory period
F76: Exit Fee | G76: Units | K76: =FPFirstYear -> 2026-27 | L76: =LEFT(K76,4)+1&"-"&RIGHT(K76,2)+1 -> 2027-28 | M76: =LEFT(L76,4)+1&"-"&RIGHT(L76,2)+1 -> 2028-29 | N76: =LEFT(M76,4)+1&"-"&RIGHT(M76,2)+1 -> 2029-30 | O76: =LEFT(N76,4)+1&"-"&RIGHT(N76,2)+1 -> 2030-31
F77: ='Input | Exit Fees'!$D29 -> Single Phase (inc. DC) | G77: $m | K77: =AVERAGE('Input | Exit Fees'!H$9:I$9)*'Calc | Exit Fees'!K61 -> 29.88237037 | L77: =AVERAGE('Input | Exit Fees'!I$9:J$9)*'Calc | Exit Fees'!L61 -> 32.7769058 | M77: =AVERAGE('Input | Exit Fees'!J$9:K$9)*'Calc | Exit Fees'!M61 -> 39.75843694 | N77: =AVERAGE('Input | Exit Fees'!K$9:L$9)*'Calc | Exit Fees'!N61 -> 48.81433448 | O77: =AVERAGE('Input | Exit Fees'!L$9:M$9)*'Calc | Exit Fees'!O61 -> 58.87586683
F78: ='Input | Exit Fees'!$D30 -> Single Phase, Two Element | G78: $m | K78: =AVERAGE('Input | Exit Fees'!H$9:I$9)*'Calc | Exit Fees'!K62 -> 2.16254733 | L78: =AVERAGE('Input | Exit Fees'!I$9:J$9)*'Calc | Exit Fees'!L62 -> 2.339504949 | M78: =AVERAGE('Input | Exit Fees'!J$9:K$9)*'Calc | Exit Fees'!M62 -> 2.800148906 | N78: =AVERAGE('Input | Exit Fees'!K$9:L$9)*'Calc | Exit Fees'!N62 -> 3.390323839 | O78: =AVERAGE('Input | Exit Fees'!L$9:M$9)*'Calc | Exit Fees'!O62 -> 4.029995376
F79: ='Input | Exit Fees'!$D31 -> Three Phase (inc. DC) | G79: $m | K79: =AVERAGE('Input | Exit Fees'!H$9:I$9)*'Calc | Exit Fees'!K63 -> 9.668000813 | L79: =AVERAGE('Input | Exit Fees'!I$9:J$9)*'Calc | Exit Fees'!L63 -> 12.10197226 | M79: =AVERAGE('Input | Exit Fees'!J$9:K$9)*'Calc | Exit Fees'!M63 -> 16.39999619 | N79: =AVERAGE('Input | Exit Fees'!K$9:L$9)*'Calc | Exit Fees'!N63 -> 22.31005684 | O79: =AVERAGE('Input | Exit Fees'!L$9:M$9)*'Calc | Exit Fees'!O63 -> 29.60887513
F80: ='Input | Exit Fees'!$D32 -> Three Phase CT | G80: $m | K80: =AVERAGE('Input | Exit Fees'!H$9:I$9)*'Calc | Exit Fees'!K64 -> 0.5618189442 | L80: =AVERAGE('Input | Exit Fees'!I$9:J$9)*'Calc | Exit Fees'!L64 -> 0.660178427 | M80: =AVERAGE('Input | Exit Fees'!J$9:K$9)*'Calc | Exit Fees'!M64 -> 0.8566533388 | N80: =AVERAGE('Input | Exit Fees'!K$9:L$9)*'Calc | Exit Fees'!N64 -> 1.12238235 | O80: =AVERAGE('Input | Exit Fees'!L$9:M$9)*'Calc | Exit Fees'!O64 -> 1.441402133
F81: ='Input | Exit Fees'!$D33 -> 0 | G81: $m | K81: =AVERAGE('Input | Exit Fees'!H$9:I$9)*'Calc | Exit Fees'!K65 -> 0 | L81: =AVERAGE('Input | Exit Fees'!I$9:J$9)*'Calc | Exit Fees'!L65 -> 0 | M81: =AVERAGE('Input | Exit Fees'!J$9:K$9)*'Calc | Exit Fees'!M65 -> 0 | N81: =AVERAGE('Input | Exit Fees'!K$9:L$9)*'Calc | Exit Fees'!N65 -> 0 | O81: =AVERAGE('Input | Exit Fees'!L$9:M$9)*'Calc | Exit Fees'!O65 -> 0
F82: ='Input | Exit Fees'!$D34 -> 0 | G82: $m | K82: =AVERAGE('Input | Exit Fees'!H$9:I$9)*'Calc | Exit Fees'!K66 -> 0 | L82: =AVERAGE('Input | Exit Fees'!I$9:J$9)*'Calc | Exit Fees'!L66 -> 0 | M82: =AVERAGE('Input | Exit Fees'!J$9:K$9)*'Calc | Exit Fees'!M66 -> 0 | N82: =AVERAGE('Input | Exit Fees'!K$9:L$9)*'Calc | Exit Fees'!N66 -> 0 | O82: =AVERAGE('Input | Exit Fees'!L$9:M$9)*'Calc | Exit Fees'!O66 -> 0
F83: ='Input | Exit Fees'!$D35 -> 0 | G83: $m | K83: =AVERAGE('Input | Exit Fees'!H$9:I$9)*'Calc | Exit Fees'!K67 -> 0 | L83: =AVERAGE('Input | Exit Fees'!I$9:J$9)*'Calc | Exit Fees'!L67 -> 0 | M83: =AVERAGE('Input | Exit Fees'!J$9:K$9)*'Calc | Exit Fees'!M67 -> 0 | N83: =AVERAGE('Input | Exit Fees'!K$9:L$9)*'Calc | Exit Fees'!N67 -> 0 | O83: =AVERAGE('Input | Exit Fees'!L$9:M$9)*'Calc | Exit Fees'!O67 -> 0
F84: ='Input | Exit Fees'!$D36 -> 0 | G84: $m | K84: =AVERAGE('Input | Exit Fees'!H$9:I$9)*'Calc | Exit Fees'!K68 -> 0 | L84: =AVERAGE('Input | Exit Fees'!I$9:J$9)*'Calc | Exit Fees'!L68 -> 0 | M84: =AVERAGE('Input | Exit Fees'!J$9:K$9)*'Calc | Exit Fees'!M68 -> 0 | N84: =AVERAGE('Input | Exit Fees'!K$9:L$9)*'Calc | Exit Fees'!N68 -> 0 | O84: =AVERAGE('Input | Exit Fees'!L$9:M$9)*'Calc | Exit Fees'!O68 -> 0
F85: ='Input | Exit Fees'!$D37 -> 0 | G85: $m | K85: =AVERAGE('Input | Exit Fees'!H$9:I$9)*'Calc | Exit Fees'!K69 -> 0 | L85: =AVERAGE('Input | Exit Fees'!I$9:J$9)*'Calc | Exit Fees'!L69 -> 0 | M85: =AVERAGE('Input | Exit Fees'!J$9:K$9)*'Calc | Exit Fees'!M69 -> 0 | N85: =AVERAGE('Input | Exit Fees'!K$9:L$9)*'Calc | Exit Fees'!N69 -> 0 | O85: =AVERAGE('Input | Exit Fees'!L$9:M$9)*'Calc | Exit Fees'!O69 -> 0
F86: ='Input | Exit Fees'!$D38 -> 0 | G86: $m | K86: =AVERAGE('Input | Exit Fees'!H$9:I$9)*'Calc | Exit Fees'!K70 -> 0 | L86: =AVERAGE('Input | Exit Fees'!I$9:J$9)*'Calc | Exit Fees'!L70 -> 0 | M86: =AVERAGE('Input | Exit Fees'!J$9:K$9)*'Calc | Exit Fees'!M70 -> 0 | N86: =AVERAGE('Input | Exit Fees'!K$9:L$9)*'Calc | Exit Fees'!N70 -> 0 | O86: =AVERAGE('Input | Exit Fees'!L$9:M$9)*'Calc | Exit Fees'!O70 -> 0
F87: Total | G87: $m | K87: =SUM(K77:K86) -> 42.27473746 | L87: =SUM(L77:L86) -> 47.87856144 | M87: =SUM(M77:M86) -> 59.81523537 | N87: =SUM(N77:N86) -> 75.63709751 | O87: =SUM(O77:O86) -> 93.95613946
A88: =PRODUCT(J88:O88) -> 1 | K88: =(ROUND(K87,6)=ROUND(AVERAGE('Input | Exit Fees'!H$9:I$9),6))/1 -> 1 | L88: =(ROUND(L87,6)=ROUND(AVERAGE('Input | Exit Fees'!I$9:J$9),6))/1 -> 1 | M88: =(ROUND(M87,6)=ROUND(AVERAGE('Input | Exit Fees'!J$9:K$9),6))/1 -> 1 | N88: =(ROUND(N87,6)=ROUND(AVERAGE('Input | Exit Fees'!K$9:L$9),6))/1 -> 1 | O88: =(ROUND(O87,6)=ROUND(AVERAGE('Input | Exit Fees'!L$9:M$9),6))/1 -> 1
E90: Allocated Meter RAB by Designated Exit Fee Per Meter | K90: Regulatory period
F91: Exit Fee | G91: Units | K91: =FPFirstYear -> 2026-27 | L91: =LEFT(K91,4)+1&"-"&RIGHT(K91,2)+1 -> 2027-28 | M91: =LEFT(L91,4)+1&"-"&RIGHT(L91,2)+1 -> 2028-29 | N91: =LEFT(M91,4)+1&"-"&RIGHT(M91,2)+1 -> 2029-30 | O91: =LEFT(N91,4)+1&"-"&RIGHT(N91,2)+1 -> 2030-31
F92: ='Input | Exit Fees'!$D29 -> Single Phase (inc. DC) | G92: $dollars | K92: =IFERROR(K77*10^6/K31,0) -> 97.37435644 | L92: =IFERROR(L77*10^6/L31,0) -> 107.2993551 | M92: 130.9021845 | N92: 161.6635761 | O92: 196.159384
F93: ='Input | Exit Fees'!$D30 -> Single Phase, Two Element | G93: $dollars | K93: 106.180653 | L93: 117.003244 | M93: 142.7406551 | N93: 176.2840311 | O93: 213.8995548
F94: ='Input | Exit Fees'!$D31 -> Three Phase (inc. DC) | G94: $dollars | K94: 138.8147609 | L94: 152.9636227 | M94: 186.611302 | N94: 230.4640717 | O94: 279.6405439
F95: ='Input | Exit Fees'!$D32 -> Three Phase CT | G95: $dollars | K95: 203.2476752 | L95: 223.9639395 | M95: 273.2296844 | N95: 337.4373625 | O95: 409.4398181
F96: ='Input | Exit Fees'!$D33 -> 0 | G96: $dollars | K96: 0 | L96: 0 | M96: 0 | N96: 0 | O96: 0
F97: ='Input | Exit Fees'!$D34 -> 0 | G97: $dollars | K97: 0 | L97: 0 | M97: 0 | N97: 0 | O97: 0
F98: ='Input | Exit Fees'!$D35 -> 0 | G98: $dollars | K98: 0 | L98: 0 | M98: 0 | N98: 0 | O98: 0
F99: ='Input | Exit Fees'!$D36 -> 0 | G99: $dollars | K99: 0 | L99: 0 | M99: 0 | N99: 0 | O99: 0
F100: ='Input | Exit Fees'!$D37 -> 0 | G100: $dollars | K100: 0 | L100: 0 | M100: 0 | N100: 0 | O100: 0
F101: ='Input | Exit Fees'!$D38 -> 0 | G101: $dollars | K101: 0 | L101: 0 | M101: 0 | N101: 0 | O101: 0
B103: Calculations | Comms & IT & Other
C105: Calculation of Allocated Comms & IT RAB by Designated Exit Fee
K107: Regulatory period
F108: Exit Fee Component | G108: Units | K108: =FPFirstYear -> 2026-27 | L108: =LEFT(K108,4)+1&"-"&RIGHT(K108,2)+1 -> 2027-28 | M108: =LEFT(L108,4)+1&"-"&RIGHT(L108,2)+1 -> 2028-29 | N108: =LEFT(M108,4)+1&"-"&RIGHT(M108,2)+1 -> 2029-30 | O108: =LEFT(N108,4)+1&"-"&RIGHT(N108,2)+1 -> 2030-31
F109: Comms & IT & Other RAB per meter | G109: $dollars | K109: =(AVERAGE('Input | Exit Fees'!G$16:H$16)*10^6)/'Calc | Exit Fees'!K$41 -> 16.86106876 | L109: =(AVERAGE('Input | Exit Fees'!H$16:I$16)*10^6)/'Calc | Exit Fees'!L$41 -> 17.65885238 | M109: =(AVERAGE('Input | Exit Fees'!I$16:J$16)*10^6)/'Calc | Exit Fees'!M$41 -> 19.53656136 | N109: =(AVERAGE('Input | Exit Fees'!J$16:K$16)*10^6)/'Calc | Exit Fees'!N$41 -> 20.67914198 | O109: =(AVERAGE('Input | Exit Fees'!K$16:L$16)*10^6)/'Calc | Exit Fees'!O$41 -> 20.843605
B113: Calculations | Exit Fees with Component Detail
F115: Base Year | G115: Regulatory period
G116: Tariff ($/year)
C117: No. | D117: Exit Fee Name | E117: Component | F117: 2025-26 | G117: 2026-27 | H117: 2027-28 | I117: 2028-29 | J117: 2029-30 | K117: 2030-31
C118: 1 | D118: ='Input | Exit Fees'!D29 -> Single Phase (inc. DC)
E119: Meter RAB | G119: =IF($D118=0,0,SUMIFS('Calc | Exit Fees'!K$92:K$101,'Input | Exit Fees'!$D$29:$D$38,$D118)) -> 97.37435644 | H119: =IF($D118=0,0,SUMIFS('Calc | Exit Fees'!L$92:L$101,'Input | Exit Fees'!$D$29:$D$38,$D118)) -> 107.2993551 | I119: =IF($D118=0,0,SUMIFS('Calc | Exit Fees'!M$92:M$101,'Input | Exit Fees'!$D$29:$D$38,$D118)) -> 130.9021845 | J119: =IF($D118=0,0,SUMIFS('Calc | Exit Fees'!N$92:N$101,'Input | Exit Fees'!$D$29:$D$38,$D118)) -> 161.6635761 | K119: =IF($D118=0,0,SUMIFS('Calc | Exit Fees'!O$92:O$101,'Input | Exit Fees'!$D$29:$D$38,$D118)) -> 196.159384
E120: Comms & IT & Other | G120: =IF($D118=0,0,'Calc | Exit Fees'!K$109) -> 16.86106876 | H120: =IF($D118=0,0,'Calc | Exit Fees'!L$109) -> 17.65885238 | I120: =IF($D118=0,0,'Calc | Exit Fees'!M$109) -> 19.53656136 | J120: =IF($D118=0,0,'Calc | Exit Fees'!N$109) -> 20.67914198 | K120: =IF($D118=0,0,'Calc | Exit Fees'!O$109) -> 20.843605
E121: Admin cost | G121: =IF($D118=0,0,'Input | Exit Fees'!K$119) -> 58.78572293 | H121: =IF($D118=0,0,'Input | Exit Fees'!L$119) -> 60.57670725 | I121: =IF($D118=0,0,'Input | Exit Fees'!M$119) -> 62.49819158 | J121: =IF($D118=0,0,'Input | Exit Fees'!N$119) -> 64.4969193 | K121: =IF($D118=0,0,'Input | Exit Fees'!O$119) -> 66.52659998
E122: Tax allowance | G122: =+'Calc | Tax Allowance'!G29 -> 6.922535447 | H122: =+'Calc | Tax Allowance'!H29 -> 6.605862333 | I122: =+'Calc | Tax Allowance'!I29 -> 6.617926124 | J122: =+'Calc | Tax Allowance'!J29 -> 7.057200424 | K122: =+'Calc | Tax Allowance'!K29 -> 7.434401843
E123: TOTAL exit fee | F123: =IF(D118=0,0,'Input | Exit Fees'!G29) -> 191.64 | G123: =SUM(G119:G122) -> 179.9436836 | H123: =SUM(H119:H122) -> 192.140777 | I123: =SUM(I119:I122) -> 219.5548635 | J123: =SUM(J119:J122) -> 253.8968378 | K123: =SUM(K119:K122) -> 290.9639909
C124: 2 | D124: ='Input | Exit Fees'!D30 -> Single Phase, Two Element
E125: =IF($D124=0,"",E$119) -> Meter RAB | G125: =IF($D124=0,0,SUMIFS('Calc | Exit Fees'!K$92:K$101,'Input | Exit Fees'!$D$29:$D$38,$D124)) -> 106.180653 | H125: =IF($D124=0,0,SUMIFS('Calc | Exit Fees'!L$92:L$101,'Input | Exit Fees'!$D$29:$D$38,$D124)) -> 117.003244 | I125: =IF($D124=0,0,SUMIFS('Calc | Exit Fees'!M$92:M$101,'Input | Exit Fees'!$D$29:$D$38,$D124)) -> 142.7406551 | J125: =IF($D124=0,0,SUMIFS('Calc | Exit Fees'!N$92:N$101,'Input | Exit Fees'!$D$29:$D$38,$D124)) -> 176.2840311 | K125: =IF($D124=0,0,SUMIFS('Calc | Exit Fees'!O$92:O$101,'Input | Exit Fees'!$D$29:$D$38,$D124)) -> 213.8995548
E126: =IF($D124=0,"",E$120) -> Comms & IT & Other | G126: =IF($D124=0,0,'Calc | Exit Fees'!K$109) -> 16.86106876 | H126: =IF($D124=0,0,'Calc | Exit Fees'!L$109) -> 17.65885238 | I126: =IF($D124=0,0,'Calc | Exit Fees'!M$109) -> 19.53656136 | J126: =IF($D124=0,0,'Calc | Exit Fees'!N$109) -> 20.67914198 | K126: =IF($D124=0,0,'Calc | Exit Fees'!O$109) -> 20.843605
E127: =IF($D124=0,"",E$121) -> Admin cost | G127: =IF($D124=0,0,'Input | Exit Fees'!K$119) -> 58.78572293 | H127: =IF($D124=0,0,'Input | Exit Fees'!L$119) -> 60.57670725 | I127: =IF($D124=0,0,'Input | Exit Fees'!M$119) -> 62.49819158 | J127: =IF($D124=0,0,'Input | Exit Fees'!N$119) -> 64.4969193 | K127: =IF($D124=0,0,'Input | Exit Fees'!O$119) -> 66.52659998
E128: =IF($D124=0,"",E$122) -> Tax allowance | G128: =+'Calc | Tax Allowance'!G50 -> 7.424907349 | H128: =+'Calc | Tax Allowance'!H50 -> 7.08204569 | I128: =+'Calc | Tax Allowance'!I50 -> 7.087107114 | J128: =+'Calc | Tax Allowance'!J50 -> 7.54404574 | K128: =+'Calc | Tax Allowance'!K50 -> 7.936855702
E129: =IF($D124=0,"",E$123) -> TOTAL exit fee | F129: =IF(D124=0,0,'Input | Exit Fees'!G30) -> 191.64 | G129: =SUM(G125:G128) -> 189.2523521 | H129: =SUM(H125:H128) -> 202.3208494 | I129: =SUM(I125:I128) -> 231.8625152 | J129: =SUM(J125:J128) -> 269.0041381 | K129: =SUM(K125:K128) -> 309.2066155
C130: 3 | D130: ='Input | Exit Fees'!D31 -> Three Phase (inc. DC)
E131: =IF($D130=0,"",E$119) -> Meter RAB | G131: =IF($D130=0,0,SUMIFS('Calc | Exit Fees'!K$92:K$101,'Input | Exit Fees'!$D$29:$D$38,$D130)) -> 138.8147609 | H131: =IF($D130=0,0,SUMIFS('Calc | Exit Fees'!L$92:L$101,'Input | Exit Fees'!$D$29:$D$38,$D130)) -> 152.9636227 | I131: =IF($D130=0,0,SUMIFS('Calc | Exit Fees'!M$92:M$101,'Input | Exit Fees'!$D$29:$D$38,$D130)) -> 186.611302 | J131: =IF($D130=0,0,SUMIFS('Calc | Exit Fees'!N$92:N$101,'Input | Exit Fees'!$D$29:$D$38,$D130)) -> 230.4640717 | K131: =IF($D130=0,0,SUMIFS('Calc | Exit Fees'!O$92:O$101,'Input | Exit Fees'!$D$29:$D$38,$D130)) -> 279.6405439
E132: =IF($D130=0,"",E$120) -> Comms & IT & Other | G132: =IF($D130=0,0,'Calc | Exit Fees'!K$109) -> 16.86106876 | H132: =IF($D130=0,0,'Calc | Exit Fees'!L$109) -> 17.65885238 | I132: =IF($D130=0,0,'Calc | Exit Fees'!M$109) -> 19.53656136 | J132: =IF($D130=0,0,'Calc | Exit Fees'!N$109) -> 20.67914198 | K132: =IF($D130=0,0,'Calc | Exit Fees'!O$109) -> 20.843605
E133: =IF($D130=0,"",E$121) -> Admin cost | G133: =IF($D130=0,0,'Input | Exit Fees'!K$119) -> 58.78572293 | H133: =IF($D130=0,0,'Input | Exit Fees'!L$119) -> 60.57670725 | I133: =IF($D130=0,0,'Input | Exit Fees'!M$119) -> 62.49819158 | J133: =IF($D130=0,0,'Input | Exit Fees'!N$119) -> 64.4969193 | K133: =IF($D130=0,0,'Input | Exit Fees'!O$119) -> 66.52659998
E134: =IF($D130=0,"",E$122) -> Tax allowance | G134: =+'Calc | Tax Allowance'!G71 -> 9.28658197 | H134: =+'Calc | Tax Allowance'!H71 -> 8.846671587 | I134: =+'Calc | Tax Allowance'!I71 -> 8.825783855 | J134: =+'Calc | Tax Allowance'!J71 -> 9.348182405 | K134: =+'Calc | Tax Allowance'!K71 -> 9.798834031
E135: =IF($D130=0,"",E$123) -> TOTAL exit fee | F135: =IF(D130=0,0,'Input | Exit Fees'!G31) -> 191.64 | G135: =SUM(G131:G134) -> 223.7481345 | H135: =SUM(H131:H134) -> 240.0458539 | I135: =SUM(I131:I134) -> 277.4718388 | J135: =SUM(J131:J134) -> 324.9883153 | K135: =SUM(K131:K134) -> 376.8095829
C136: 4 | D136: ='Input | Exit Fees'!D32 -> Three Phase CT
E137: =IF($D136=0,"",E$119) -> Meter RAB | G137: =IF($D136=0,0,SUMIFS('Calc | Exit Fees'!K$92:K$101,'Input | Exit Fees'!$D$29:$D$38,$D136)) -> 203.2476752 | H137: =IF($D136=0,0,SUMIFS('Calc | Exit Fees'!L$92:L$101,'Input | Exit Fees'!$D$29:$D$38,$D136)) -> 223.9639395 | I137: =IF($D136=0,0,SUMIFS('Calc | Exit Fees'!M$92:M$101,'Input | Exit Fees'!$D$29:$D$38,$D136)) -> 273.2296844 | J137: =IF($D136=0,0,SUMIFS('Calc | Exit Fees'!N$92:N$101,'Input | Exit Fees'!$D$29:$D$38,$D136)) -> 337.4373625 | K137: =IF($D136=0,0,SUMIFS('Calc | Exit Fees'!O$92:O$101,'Input | Exit Fees'!$D$29:$D$38,$D136)) -> 409.4398181
E138: =IF($D136=0,"",E$120) -> Comms & IT & Other | G138: =IF($D136=0,0,'Calc | Exit Fees'!K$109) -> 16.86106876 | H138: =IF($D136=0,0,'Calc | Exit Fees'!L$109) -> 17.65885238 | I138: =IF($D136=0,0,'Calc | Exit Fees'!M$109) -> 19.53656136 | J138: =IF($D136=0,0,'Calc | Exit Fees'!N$109) -> 20.67914198 | K138: =IF($D136=0,0,'Calc | Exit Fees'!O$109) -> 20.843605
E139: =IF($D136=0,"",E$121) -> Admin cost | G139: =IF($D136=0,0,'Input | Exit Fees'!K$119) -> 58.78572293 | H139: =IF($D136=0,0,'Input | Exit Fees'!L$119) -> 60.57670725 | I139: =IF($D136=0,0,'Input | Exit Fees'!M$119) -> 62.49819158 | J139: =IF($D136=0,0,'Input | Exit Fees'!N$119) -> 64.4969193 | K139: =IF($D136=0,0,'Input | Exit Fees'!O$119) -> 66.52659998
E140: =IF($D136=0,"",E$122) -> Tax allowance | G140: =+'Calc | Tax Allowance'!G92 -> 12.96227986 | H140: =+'Calc | Tax Allowance'!H92 -> 12.33075609 | I140: =+'Calc | Tax Allowance'!I92 -> 12.25863423 | J140: =+'Calc | Tax Allowance'!J92 -> 12.91027712 | K140: =+'Calc | Tax Allowance'!K92 -> 13.47513156
E141: =IF($D136=0,"",E$123) -> TOTAL exit fee | F141: =IF(D136=0,0,'Input | Exit Fees'!G32) -> 191.64 | G141: =SUM(G137:G140) -> 291.8567468 | H141: =SUM(H137:H140) -> 314.5302552 | I141: =SUM(I137:I140) -> 367.5230716 | J141: =SUM(J137:J140) -> 435.5237009 | K141: =SUM(K137:K140) -> 510.2851546
C142: 5 | D142: ='Input | Exit Fees'!D33 -> 0
E143: =IF($D142=0,"",E$119) ->  | G143: =IF($D142=0,0,SUMIFS('Calc | Exit Fees'!K$92:K$101,'Input | Exit Fees'!$D$29:$D$38,$D142)) -> 0 | H143: =IF($D142=0,0,SUMIFS('Calc | Exit Fees'!L$92:L$101,'Input | Exit Fees'!$D$29:$D$38,$D142)) -> 0 | I143: =IF($D142=0,0,SUMIFS('Calc | Exit Fees'!M$92:M$101,'Input | Exit Fees'!$D$29:$D$38,$D142)) -> 0 | J143: =IF($D142=0,0,SUMIFS('Calc | Exit Fees'!N$92:N$101,'Input | Exit Fees'!$D$29:$D$38,$D142)) -> 0 | K143: =IF($D142=0,0,SUMIFS('Calc | Exit Fees'!O$92:O$101,'Input | Exit Fees'!$D$29:$D$38,$D142)) -> 0
E144: =IF($D142=0,"",E$120) ->  | G144: =IF($D142=0,0,'Calc | Exit Fees'!K$109) -> 0 | H144: =IF($D142=0,0,'Calc | Exit Fees'!L$109) -> 0 | I144: =IF($D142=0,0,'Calc | Exit Fees'!M$109) -> 0 | J144: =IF($D142=0,0,'Calc | Exit Fees'!N$109) -> 0 | K144: =IF($D142=0,0,'Calc | Exit Fees'!O$109) -> 0
E145: =IF($D142=0,"",E$121) ->  | G145: =IF($D142=0,0,'Input | Exit Fees'!K$119) -> 0 | H145: =IF($D142=0,0,'Input | Exit Fees'!L$119) -> 0 | I145: =IF($D142=0,0,'Input | Exit Fees'!M$119) -> 0 | J145: =IF($D142=0,0,'Input | Exit Fees'!N$119) -> 0 | K145: =IF($D142=0,0,'Input | Exit Fees'!O$119) -> 0
E146: =IF($D142=0,"",E$122) -> 
E147: =IF($D142=0,"",E$123) ->  | F147: =IF(D142=0,0,'Input | Exit Fees'!G33) -> 0 | G147: =SUM(G143:G146) -> 0 | H147: =SUM(H143:H146) -> 0 | I147: =SUM(I143:I146) -> 0 | J147: =SUM(J143:J146) -> 0 | K147: =SUM(K143:K146) -> 0
C148: 6 | D148: ='Input | Exit Fees'!D34 -> 0
E149: =IF($D148=0,"",E$119) ->  | G149: =IF($D148=0,0,SUMIFS('Calc | Exit Fees'!K$92:K$101,'Input | Exit Fees'!$D$29:$D$38,$D148)) -> 0 | H149: =IF($D148=0,0,SUMIFS('Calc | Exit Fees'!L$92:L$101,'Input | Exit Fees'!$D$29:$D$38,$D148)) -> 0 | I149: =IF($D148=0,0,SUMIFS('Calc | Exit Fees'!M$92:M$101,'Input | Exit Fees'!$D$29:$D$38,$D148)) -> 0 | J149: =IF($D148=0,0,SUMIFS('Calc | Exit Fees'!N$92:N$101,'Input | Exit Fees'!$D$29:$D$38,$D148)) -> 0 | K149: =IF($D148=0,0,SUMIFS('Calc | Exit Fees'!O$92:O$101,'Input | Exit Fees'!$D$29:$D$38,$D148)) -> 0
E150: =IF($D148=0,"",E$120) ->  | G150: =IF($D148=0,0,'Calc | Exit Fees'!K$109) -> 0 | H150: =IF($D148=0,0,'Calc | Exit Fees'!L$109) -> 0 | I150: =IF($D148=0,0,'Calc | Exit Fees'!M$109) -> 0 | J150: =IF($D148=0,0,'Calc | Exit Fees'!N$109) -> 0 | K150: =IF($D148=0,0,'Calc | Exit Fees'!O$109) -> 0
E151: =IF($D148=0,"",E$121) ->  | G151: =IF($D148=0,0,'Input | Exit Fees'!K$119) -> 0 | H151: =IF($D148=0,0,'Input | Exit Fees'!L$119) -> 0 | I151: =IF($D148=0,0,'Input | Exit Fees'!M$119) -> 0 | J151: =IF($D148=0,0,'Input | Exit Fees'!N$119) -> 0 | K151: =IF($D148=0,0,'Input | Exit Fees'!O$119) -> 0
E152: =IF($D148=0,"",E$122) -> 
E153: =IF($D148=0,"",E$123) ->  | F153: =IF(D148=0,0,'Input | Exit Fees'!G34) -> 0 | G153: =SUM(G149:G152) -> 0 | H153: =SUM(H149:H152) -> 0 | I153: =SUM(I149:I152) -> 0 | J153: =SUM(J149:J152) -> 0 | K153: =SUM(K149:K152) -> 0
C154: 7 | D154: ='Input | Exit Fees'!D35 -> 0
E155: =IF($D154=0,"",E$119) ->  | G155: =IF($D154=0,0,SUMIFS('Calc | Exit Fees'!K$92:K$101,'Input | Exit Fees'!$D$29:$D$38,$D154)) -> 0 | H155: =IF($D154=0,0,SUMIFS('Calc | Exit Fees'!L$92:L$101,'Input | Exit Fees'!$D$29:$D$38,$D154)) -> 0 | I155: =IF($D154=0,0,SUMIFS('Calc | Exit Fees'!M$92:M$101,'Input | Exit Fees'!$D$29:$D$38,$D154)) -> 0 | J155: =IF($D154=0,0,SUMIFS('Calc | Exit Fees'!N$92:N$101,'Input | Exit Fees'!$D$29:$D$38,$D154)) -> 0 | K155: =IF($D154=0,0,SUMIFS('Calc | Exit Fees'!O$92:O$101,'Input | Exit Fees'!$D$29:$D$38,$D154)) -> 0
E156: =IF($D154=0,"",E$120) ->  | G156: =IF($D154=0,0,'Calc | Exit Fees'!K$109) -> 0 | H156: =IF($D154=0,0,'Calc | Exit Fees'!L$109) -> 0 | I156: =IF($D154=0,0,'Calc | Exit Fees'!M$109) -> 0 | J156: =IF($D154=0,0,'Calc | Exit Fees'!N$109) -> 0 | K156: =IF($D154=0,0,'Calc | Exit Fees'!O$109) -> 0
E157: =IF($D154=0,"",E$121) ->  | G157: =IF($D154=0,0,'Input | Exit Fees'!K$119) -> 0 | H157: =IF($D154=0,0,'Input | Exit Fees'!L$119) -> 0 | I157: =IF($D154=0,0,'Input | Exit Fees'!M$119) -> 0 | J157: =IF($D154=0,0,'Input | Exit Fees'!N$119) -> 0 | K157: =IF($D154=0,0,'Input | Exit Fees'!O$119) -> 0
E158: =IF($D154=0,"",E$122) -> 
E159: =IF($D154=0,"",E$123) ->  | F159: =IF(D154=0,0,'Input | Exit Fees'!G35) -> 0 | G159: =SUM(G155:G158) -> 0 | H159: =SUM(H155:H158) -> 0 | I159: =SUM(I155:I158) -> 0 | J159: =SUM(J155:J158) -> 0 | K159: =SUM(K155:K158) -> 0
C160: 8 | D160: ='Input | Exit Fees'!D36 -> 0
E161: =IF($D160=0,"",E$119) ->  | G161: =IF($D160=0,0,SUMIFS('Calc | Exit Fees'!K$92:K$101,'Input | Exit Fees'!$D$29:$D$38,$D160)) -> 0 | H161: =IF($D160=0,0,SUMIFS('Calc | Exit Fees'!L$92:L$101,'Input | Exit Fees'!$D$29:$D$38,$D160)) -> 0 | I161: =IF($D160=0,0,SUMIFS('Calc | Exit Fees'!M$92:M$101,'Input | Exit Fees'!$D$29:$D$38,$D160)) -> 0 | J161: =IF($D160=0,0,SUMIFS('Calc | Exit Fees'!N$92:N$101,'Input | Exit Fees'!$D$29:$D$38,$D160)) -> 0 | K161: =IF($D160=0,0,SUMIFS('Calc | Exit Fees'!O$92:O$101,'Input | Exit Fees'!$D$29:$D$38,$D160)) -> 0
E162: =IF($D160=0,"",E$120) ->  | G162: =IF($D160=0,0,'Calc | Exit Fees'!K$109) -> 0 | H162: =IF($D160=0,0,'Calc | Exit Fees'!L$109) -> 0 | I162: =IF($D160=0,0,'Calc | Exit Fees'!M$109) -> 0 | J162: =IF($D160=0,0,'Calc | Exit Fees'!N$109) -> 0 | K162: =IF($D160=0,0,'Calc | Exit Fees'!O$109) -> 0
E163: =IF($D160=0,"",E$121) ->  | G163: =IF($D160=0,0,'Input | Exit Fees'!K$119) -> 0 | H163: =IF($D160=0,0,'Input | Exit Fees'!L$119) -> 0 | I163: =IF($D160=0,0,'Input | Exit Fees'!M$119) -> 0 | J163: =IF($D160=0,0,'Input | Exit Fees'!N$119) -> 0 | K163: =IF($D160=0,0,'Input | Exit Fees'!O$119) -> 0
E164: =IF($D160=0,"",E$122) -> 
E165: =IF($D160=0,"",E$123) ->  | F165: =IF(D160=0,0,'Input | Exit Fees'!G36) -> 0 | G165: =SUM(G161:G164) -> 0 | H165: =SUM(H161:H164) -> 0 | I165: =SUM(I161:I164) -> 0 | J165: =SUM(J161:J164) -> 0 | K165: =SUM(K161:K164) -> 0
C166: 9 | D166: ='Input | Exit Fees'!D37 -> 0
E167: =IF($D166=0,"",E$119) ->  | G167: =IF($D166=0,0,SUMIFS('Calc | Exit Fees'!K$92:K$101,'Input | Exit Fees'!$D$29:$D$38,$D166)) -> 0 | H167: =IF($D166=0,0,SUMIFS('Calc | Exit Fees'!L$92:L$101,'Input | Exit Fees'!$D$29:$D$38,$D166)) -> 0 | I167: =IF($D166=0,0,SUMIFS('Calc | Exit Fees'!M$92:M$101,'Input | Exit Fees'!$D$29:$D$38,$D166)) -> 0 | J167: =IF($D166=0,0,SUMIFS('Calc | Exit Fees'!N$92:N$101,'Input | Exit Fees'!$D$29:$D$38,$D166)) -> 0 | K167: =IF($D166=0,0,SUMIFS('Calc | Exit Fees'!O$92:O$101,'Input | Exit Fees'!$D$29:$D$38,$D166)) -> 0
E168: =IF($D166=0,"",E$120) ->  | G168: =IF($D166=0,0,'Calc | Exit Fees'!K$109) -> 0 | H168: =IF($D166=0,0,'Calc | Exit Fees'!L$109) -> 0 | I168: =IF($D166=0,0,'Calc | Exit Fees'!M$109) -> 0 | J168: =IF($D166=0,0,'Calc | Exit Fees'!N$109) -> 0 | K168: =IF($D166=0,0,'Calc | Exit Fees'!O$109) -> 0
E169: =IF($D166=0,"",E$121) ->  | G169: =IF($D166=0,0,'Input | Exit Fees'!K$119) -> 0 | H169: =IF($D166=0,0,'Input | Exit Fees'!L$119) -> 0 | I169: =IF($D166=0,0,'Input | Exit Fees'!M$119) -> 0 | J169: =IF($D166=0,0,'Input | Exit Fees'!N$119) -> 0 | K169: =IF($D166=0,0,'Input | Exit Fees'!O$119) -> 0
E170: =IF($D166=0,"",E$122) -> 
E171: =IF($D166=0,"",E$123) ->  | F171: =IF(D166=0,0,'Input | Exit Fees'!G37) -> 0 | G171: =SUM(G167:G170) -> 0 | H171: =SUM(H167:H170) -> 0 | I171: =SUM(I167:I170) -> 0 | J171: =SUM(J167:J170) -> 0 | K171: =SUM(K167:K170) -> 0
C172: 10 | D172: ='Input | Exit Fees'!D38 -> 0
E173: =IF($D172=0,"",E$119) ->  | G173: =IF($D172=0,0,SUMIFS('Calc | Exit Fees'!K$92:K$101,'Input | Exit Fees'!$D$29:$D$38,$D172)) -> 0 | H173: =IF($D172=0,0,SUMIFS('Calc | Exit Fees'!L$92:L$101,'Input | Exit Fees'!$D$29:$D$38,$D172)) -> 0 | I173: =IF($D172=0,0,SUMIFS('Calc | Exit Fees'!M$92:M$101,'Input | Exit Fees'!$D$29:$D$38,$D172)) -> 0 | J173: =IF($D172=0,0,SUMIFS('Calc | Exit Fees'!N$92:N$101,'Input | Exit Fees'!$D$29:$D$38,$D172)) -> 0 | K173: =IF($D172=0,0,SUMIFS('Calc | Exit Fees'!O$92:O$101,'Input | Exit Fees'!$D$29:$D$38,$D172)) -> 0
E174: =IF($D172=0,"",E$120) ->  | G174: =IF($D172=0,0,'Calc | Exit Fees'!K$109) -> 0 | H174: =IF($D172=0,0,'Calc | Exit Fees'!L$109) -> 0 | I174: =IF($D172=0,0,'Calc | Exit Fees'!M$109) -> 0 | J174: =IF($D172=0,0,'Calc | Exit Fees'!N$109) -> 0 | K174: =IF($D172=0,0,'Calc | Exit Fees'!O$109) -> 0
E175: =IF($D172=0,"",E$121) ->  | G175: =IF($D172=0,0,'Input | Exit Fees'!K$119) -> 0 | H175: =IF($D172=0,0,'Input | Exit Fees'!L$119) -> 0 | I175: =IF($D172=0,0,'Input | Exit Fees'!M$119) -> 0 | J175: =IF($D172=0,0,'Input | Exit Fees'!N$119) -> 0 | K175: =IF($D172=0,0,'Input | Exit Fees'!O$119) -> 0
E176: =IF($D172=0,"",E$122) -> 
E177: =IF($D172=0,"",E$123) ->  | F177: =IF(D172=0,0,'Input | Exit Fees'!G38) -> 0 | G177: =SUM(G173:G176) -> 0 | H177: =SUM(H173:H176) -> 0 | I177: =SUM(I173:I176) -> 0 | J177: =SUM(J173:J176) -> 0 | K177: =SUM(K173:K176) -> 0
B180: CALCULATION | Meters (TAB)
B182: Calculation of Allocated Meters TAB by Designated Exit Fee
E184: Allocated Meter TAB by Designated Exit Fee | K184: Regulatory period
F185: Exit Fee | G185: Units | K185: =FPFirstYear -> 2026-27 | L185: =LEFT(K185,4)+1&"-"&RIGHT(K185,2)+1 -> 2027-28 | M185: =LEFT(L185,4)+1&"-"&RIGHT(L185,2)+1 -> 2028-29 | N185: =LEFT(M185,4)+1&"-"&RIGHT(M185,2)+1 -> 2029-30 | O185: =LEFT(N185,4)+1&"-"&RIGHT(N185,2)+1 -> 2030-31
F186: ='Input | Exit Fees'!$D29 -> Single Phase (inc. DC) | G186: $m | K186: =AVERAGE('Input | Exit Fees'!H$126:I$126)*'Calc | Exit Fees'!K61 -> 18.3723651 | L186: =AVERAGE('Input | Exit Fees'!I$126:J$126)*'Calc | Exit Fees'!L61 -> 21.9170317 | M186: =AVERAGE('Input | Exit Fees'!J$126:K$126)*'Calc | Exit Fees'!M61 -> 29.11939422 | N186: =AVERAGE('Input | Exit Fees'!K$126:L$126)*'Calc | Exit Fees'!N61 -> 37.83929922 | O186: =AVERAGE('Input | Exit Fees'!L$126:M$126)*'Calc | Exit Fees'!O61 -> 47.61675461
F187: ='Input | Exit Fees'!$D30 -> Single Phase, Two Element | G187: $m | K187: =AVERAGE('Input | Exit Fees'!H$126:I$126)*'Calc | Exit Fees'!K62 -> 1.329583584 | L187: =AVERAGE('Input | Exit Fees'!I$126:J$126)*'Calc | Exit Fees'!L62 -> 1.564363776 | M187: =AVERAGE('Input | Exit Fees'!J$126:K$126)*'Calc | Exit Fees'!M62 -> 2.050851244 | N187: =AVERAGE('Input | Exit Fees'!K$126:L$126)*'Calc | Exit Fees'!N62 -> 2.628069798 | O187: =AVERAGE('Input | Exit Fees'!L$126:M$126)*'Calc | Exit Fees'!O62 -> 3.259320181
F188: ='Input | Exit Fees'!$D31 -> Three Phase (inc. DC) | G188: $m | K188: =AVERAGE('Input | Exit Fees'!H$126:I$126)*'Calc | Exit Fees'!K63 -> 5.944108132 | L188: =AVERAGE('Input | Exit Fees'!I$126:J$126)*'Calc | Exit Fees'!L63 -> 8.09226201 | M188: =AVERAGE('Input | Exit Fees'!J$126:K$126)*'Calc | Exit Fees'!M63 -> 12.01148714 | N188: =AVERAGE('Input | Exit Fees'!K$126:L$126)*'Calc | Exit Fees'!N63 -> 17.2940372 | O188: =AVERAGE('Input | Exit Fees'!L$126:M$126)*'Calc | Exit Fees'!O63 -> 23.94662902
F189: ='Input | Exit Fees'!$D32 -> Three Phase CT | G189: $m | K189: =AVERAGE('Input | Exit Fees'!H$126:I$126)*'Calc | Exit Fees'!K64 -> 0.3454191429 | L189: =AVERAGE('Input | Exit Fees'!I$126:J$126)*'Calc | Exit Fees'!L64 -> 0.4414434847 | M189: =AVERAGE('Input | Exit Fees'!J$126:K$126)*'Calc | Exit Fees'!M64 -> 0.6274196925 | N189: =AVERAGE('Input | Exit Fees'!K$126:L$126)*'Calc | Exit Fees'!N64 -> 0.8700346329 | O189: =AVERAGE('Input | Exit Fees'!L$126:M$126)*'Calc | Exit Fees'!O64 -> 1.165755943
F190: ='Input | Exit Fees'!$D33 -> 0 | G190: $m | K190: =AVERAGE('Input | Exit Fees'!H$126:I$126)*'Calc | Exit Fees'!K65 -> 0 | L190: =AVERAGE('Input | Exit Fees'!I$126:J$126)*'Calc | Exit Fees'!L65 -> 0 | M190: =AVERAGE('Input | Exit Fees'!J$126:K$126)*'Calc | Exit Fees'!M65 -> 0 | N190: =AVERAGE('Input | Exit Fees'!K$126:L$126)*'Calc | Exit Fees'!N65 -> 0 | O190: =AVERAGE('Input | Exit Fees'!L$126:M$126)*'Calc | Exit Fees'!O65 -> 0
F191: ='Input | Exit Fees'!$D34 -> 0 | G191: $m | K191: =AVERAGE('Input | Exit Fees'!H$126:I$126)*'Calc | Exit Fees'!K66 -> 0 | L191: =AVERAGE('Input | Exit Fees'!I$126:J$126)*'Calc | Exit Fees'!L66 -> 0 | M191: =AVERAGE('Input | Exit Fees'!J$126:K$126)*'Calc | Exit Fees'!M66 -> 0 | N191: =AVERAGE('Input | Exit Fees'!K$126:L$126)*'Calc | Exit Fees'!N66 -> 0 | O191: =AVERAGE('Input | Exit Fees'!L$126:M$126)*'Calc | Exit Fees'!O66 -> 0
F192: ='Input | Exit Fees'!$D35 -> 0 | G192: $m | K192: =AVERAGE('Input | Exit Fees'!H$126:I$126)*'Calc | Exit Fees'!K67 -> 0 | L192: =AVERAGE('Input | Exit Fees'!I$126:J$126)*'Calc | Exit Fees'!L67 -> 0 | M192: =AVERAGE('Input | Exit Fees'!J$126:K$126)*'Calc | Exit Fees'!M67 -> 0 | N192: =AVERAGE('Input | Exit Fees'!K$126:L$126)*'Calc | Exit Fees'!N67 -> 0 | O192: =AVERAGE('Input | Exit Fees'!L$126:M$126)*'Calc | Exit Fees'!O67 -> 0
F193: ='Input | Exit Fees'!$D36 -> 0 | G193: $m | K193: =AVERAGE('Input | Exit Fees'!H$126:I$126)*'Calc | Exit Fees'!K68 -> 0 | L193: =AVERAGE('Input | Exit Fees'!I$126:J$126)*'Calc | Exit Fees'!L68 -> 0 | M193: =AVERAGE('Input | Exit Fees'!J$126:K$126)*'Calc | Exit Fees'!M68 -> 0 | N193: =AVERAGE('Input | Exit Fees'!K$126:L$126)*'Calc | Exit Fees'!N68 -> 0 | O193: =AVERAGE('Input | Exit Fees'!L$126:M$126)*'Calc | Exit Fees'!O68 -> 0
F194: ='Input | Exit Fees'!$D37 -> 0 | G194: $m | K194: =AVERAGE('Input | Exit Fees'!H$126:I$126)*'Calc | Exit Fees'!K69 -> 0 | L194: =AVERAGE('Input | Exit Fees'!I$126:J$126)*'Calc | Exit Fees'!L69 -> 0 | M194: =AVERAGE('Input | Exit Fees'!J$126:K$126)*'Calc | Exit Fees'!M69 -> 0 | N194: =AVERAGE('Input | Exit Fees'!K$126:L$126)*'Calc | Exit Fees'!N69 -> 0 | O194: =AVERAGE('Input | Exit Fees'!L$126:M$126)*'Calc | Exit Fees'!O69 -> 0
F195: ='Input | Exit Fees'!$D38 -> 0 | G195: $m | K195: =AVERAGE('Input | Exit Fees'!H$126:I$126)*'Calc | Exit Fees'!K70 -> 0 | L195: =AVERAGE('Input | Exit Fees'!I$126:J$126)*'Calc | Exit Fees'!L70 -> 0 | M195: =AVERAGE('Input | Exit Fees'!J$126:K$126)*'Calc | Exit Fees'!M70 -> 0 | N195: =AVERAGE('Input | Exit Fees'!K$126:L$126)*'Calc | Exit Fees'!N70 -> 0 | O195: =AVERAGE('Input | Exit Fees'!L$126:M$126)*'Calc | Exit Fees'!O70 -> 0
F196: Total | G196: $m | K196: =SUM(K186:K195) -> 25.99147596 | L196: =SUM(L186:L195) -> 32.01510097 | M196: =SUM(M186:M195) -> 43.8091523 | N196: =SUM(N186:N195) -> 58.63144085 | O196: =SUM(O186:O195) -> 75.98845975
K197: =(K196=AVERAGE('Input | Exit Fees'!H$126:I$126))/1 -> 1 | L197: =(L196=AVERAGE('Input | Exit Fees'!I$126:J$126))/1 -> 1 | M197: =(M196=AVERAGE('Input | Exit Fees'!J$126:K$126))/1 -> 1 | N197: =(N196=AVERAGE('Input | Exit Fees'!K$126:L$126))/1 -> 1 | O197: =(O196=AVERAGE('Input | Exit Fees'!L$126:M$126))/1 -> 1
E199: Allocated Meter TAB by Designated Exit Fee Per Meter | K199: Regulatory period
F200: Exit Fee | G200: Units | K200: =FPFirstYear -> 2026-27 | L200: =LEFT(K200,4)+1&"-"&RIGHT(K200,2)+1 -> 2027-28 | M200: =LEFT(L200,4)+1&"-"&RIGHT(L200,2)+1 -> 2028-29 | N200: =LEFT(M200,4)+1&"-"&RIGHT(M200,2)+1 -> 2029-30 | O200: =LEFT(N200,4)+1&"-"&RIGHT(N200,2)+1 -> 2030-31
F201: ='Input | Exit Fees'!$D29 -> Single Phase (inc. DC) | G201: $dollars | K201: =IFERROR(K186*10^6/'Calc | Exit Fees'!K31,0) -> 59.86798254 | L201: =IFERROR(L186*10^6/'Calc | Exit Fees'!L31,0) -> 71.74818089 | M201: =IFERROR(M186*10^6/'Calc | Exit Fees'!M31,0) -> 95.87379704 | N201: =IFERROR(N186*10^6/'Calc | Exit Fees'!N31,0) -> 125.3163951 | O201: =IFERROR(O186*10^6/'Calc | Exit Fees'!O31,0) -> 158.6468915
F202: ='Input | Exit Fees'!$D30 -> Single Phase, Two Element | G202: $dollars | K202: =IFERROR(K187*10^6/'Calc | Exit Fees'!K32,0) -> 65.2822952 | L202: =IFERROR(L187*10^6/'Calc | Exit Fees'!L32,0) -> 78.23690938 | M202: =IFERROR(M187*10^6/'Calc | Exit Fees'!M32,0) -> 104.5443867 | N202: =IFERROR(N187*10^6/'Calc | Exit Fees'!N32,0) -> 136.6497008 | O202: =IFERROR(O187*10^6/'Calc | Exit Fees'!O32,0) -> 172.994525
F203: ='Input | Exit Fees'!$D31 -> Three Phase (inc. DC) | G203: $dollars | K203: =IFERROR(K188*10^6/'Calc | Exit Fees'!K33,0) -> 85.34649148 | L203: =IFERROR(L188*10^6/'Calc | Exit Fees'!L33,0) -> 102.2826434 | M203: =IFERROR(M188*10^6/'Calc | Exit Fees'!M33,0) -> 136.6755961 | N203: =IFERROR(N188*10^6/'Calc | Exit Fees'!N33,0) -> 178.6483224 | O203: =IFERROR(O188*10^6/'Calc | Exit Fees'!O33,0) -> 226.1635518
F204: ='Input | Exit Fees'!$D32 -> Three Phase CT | G204: $dollars | K204: =IFERROR(K189*10^6/'Calc | Exit Fees'!K34,0) -> 124.9613216 | L204: =IFERROR(L189*10^6/'Calc | Exit Fees'!L34,0) -> 149.7586377 | M204: =IFERROR(M189*10^6/'Calc | Exit Fees'!M34,0) -> 200.1155856 | N204: =IFERROR(N189*10^6/'Calc | Exit Fees'!N34,0) -> 261.5705707 | O204: =IFERROR(O189*10^6/'Calc | Exit Fees'!O34,0) -> 331.140693
F205: ='Input | Exit Fees'!$D33 -> 0 | G205: $dollars | K205: =IFERROR(K190*10^6/'Calc | Exit Fees'!K35,0) -> 0 | L205: =IFERROR(L190*10^6/'Calc | Exit Fees'!L35,0) -> 0 | M205: =IFERROR(M190*10^6/'Calc | Exit Fees'!M35,0) -> 0 | N205: =IFERROR(N190*10^6/'Calc | Exit Fees'!N35,0) -> 0 | O205: =IFERROR(O190*10^6/'Calc | Exit Fees'!O35,0) -> 0
F206: ='Input | Exit Fees'!$D34 -> 0 | G206: $dollars | K206: =IFERROR(K191*10^6/'Calc | Exit Fees'!K36,0) -> 0 | L206: =IFERROR(L191*10^6/'Calc | Exit Fees'!L36,0) -> 0 | M206: =IFERROR(M191*10^6/'Calc | Exit Fees'!M36,0) -> 0 | N206: =IFERROR(N191*10^6/'Calc | Exit Fees'!N36,0) -> 0 | O206: =IFERROR(O191*10^6/'Calc | Exit Fees'!O36,0) -> 0
F207: ='Input | Exit Fees'!$D35 -> 0 | G207: $dollars | K207: =IFERROR(K192*10^6/'Calc | Exit Fees'!K37,0) -> 0 | L207: =IFERROR(L192*10^6/'Calc | Exit Fees'!L37,0) -> 0 | M207: =IFERROR(M192*10^6/'Calc | Exit Fees'!M37,0) -> 0 | N207: =IFERROR(N192*10^6/'Calc | Exit Fees'!N37,0) -> 0 | O207: =IFERROR(O192*10^6/'Calc | Exit Fees'!O37,0) -> 0
F208: ='Input | Exit Fees'!$D36 -> 0 | G208: $dollars | K208: =IFERROR(K193*10^6/'Calc | Exit Fees'!K38,0) -> 0 | L208: =IFERROR(L193*10^6/'Calc | Exit Fees'!L38,0) -> 0 | M208: =IFERROR(M193*10^6/'Calc | Exit Fees'!M38,0) -> 0 | N208: =IFERROR(N193*10^6/'Calc | Exit Fees'!N38,0) -> 0 | O208: =IFERROR(O193*10^6/'Calc | Exit Fees'!O38,0) -> 0
F209: ='Input | Exit Fees'!$D37 -> 0 | G209: $dollars | K209: =IFERROR(K194*10^6/'Calc | Exit Fees'!K39,0) -> 0 | L209: =IFERROR(L194*10^6/'Calc | Exit Fees'!L39,0) -> 0 | M209: =IFERROR(M194*10^6/'Calc | Exit Fees'!M39,0) -> 0 | N209: =IFERROR(N194*10^6/'Calc | Exit Fees'!N39,0) -> 0 | O209: =IFERROR(O194*10^6/'Calc | Exit Fees'!O39,0) -> 0
F210: ='Input | Exit Fees'!$D38 -> 0 | G210: $dollars | K210: =IFERROR(K195*10^6/'Calc | Exit Fees'!K40,0) -> 0 | L210: =IFERROR(L195*10^6/'Calc | Exit Fees'!L40,0) -> 0 | M210: =IFERROR(M195*10^6/'Calc | Exit Fees'!M40,0) -> 0 | N210: =IFERROR(N195*10^6/'Calc | Exit Fees'!N40,0) -> 0 | O210: =IFERROR(O195*10^6/'Calc | Exit Fees'!O40,0) -> 0
B212: Calculations | Comms & IT & Other (TAB)
C214: Calculation of Allocated Comms & IT TAB by Designated Exit Fee
K216: Regulatory period
F217: Exit Fee Component | G217: Units | K217: =FPFirstYear -> 2026-27 | L217: =LEFT(K217,4)+1&"-"&RIGHT(K217,2)+1 -> 2027-28 | M217: =LEFT(L217,4)+1&"-"&RIGHT(L217,2)+1 -> 2028-29 | N217: =LEFT(M217,4)+1&"-"&RIGHT(M217,2)+1 -> 2029-30 | O217: =LEFT(N217,4)+1&"-"&RIGHT(N217,2)+1 -> 2030-31
F218: Comms & IT & Other TAB per meter | G218: $dollars | K218: =(AVERAGE('Input | Exit Fees'!G$133:H$133)*10^6)/'Calc | Exit Fees'!K$41 -> 7.626912619 | L218: =(AVERAGE('Input | Exit Fees'!H$133:I$133)*10^6)/'Calc | Exit Fees'!L$41 -> 8.60765374 | M218: =(AVERAGE('Input | Exit Fees'!I$133:J$133)*10^6)/'Calc | Exit Fees'!M$41 -> 9.881122031 | N218: =(AVERAGE('Input | Exit Fees'!J$133:K$133)*10^6)/'Calc | Exit Fees'!N$41 -> 9.376543316 | O218: =(AVERAGE('Input | Exit Fees'!K$133:L$133)*10^6)/'Calc | Exit Fees'!O$41 -> 8.159477385
B222: Calculations | Exit Fees with Component Detail (TAB)
F224: Base Year | G224: Regulatory period
G225: Tariff ($/year)
C226: No. | D226: Exit Fee Name | E226: Component | F226: 2025-26 | G226: 2026-27 | H226: 2027-28 | I226: 2028-29 | J226: 2029-30 | K226: 2030-31
C227: 1 | D227: ='Input | Exit Fees'!D29 -> Single Phase (inc. DC)
E228: WDV - Meter RAB | G228: =IF($D227=0,0,SUMIFS('Calc | Exit Fees'!K$201:K$210,'Input | Exit Fees'!$D$29:$D$38,$D227)) -> 59.86798254 | H228: =IF($D227=0,0,SUMIFS('Calc | Exit Fees'!L$201:L$210,'Input | Exit Fees'!$D$29:$D$38,$D227)) -> 71.74818089 | I228: =IF($D227=0,0,SUMIFS('Calc | Exit Fees'!M$201:M$210,'Input | Exit Fees'!$D$29:$D$38,$D227)) -> 95.87379704 | J228: =IF($D227=0,0,SUMIFS('Calc | Exit Fees'!N$201:N$210,'Input | Exit Fees'!$D$29:$D$38,$D227)) -> 125.3163951 | K228: =IF($D227=0,0,SUMIFS('Calc | Exit Fees'!O$201:O$210,'Input | Exit Fees'!$D$29:$D$38,$D227)) -> 158.6468915
E229: WDV - Comms & IT & Other | G229: =IF($D227=0,0,'Calc | Exit Fees'!K$218) -> 7.626912619 | H229: =IF($D227=0,0,'Calc | Exit Fees'!L$218) -> 8.60765374 | I229: =IF($D227=0,0,'Calc | Exit Fees'!M$218) -> 9.881122031 | J229: =IF($D227=0,0,'Calc | Exit Fees'!N$218) -> 9.376543316 | K229: =IF($D227=0,0,'Calc | Exit Fees'!O$218) -> 8.159477385
E232: TOTAL WDV | G232: =SUM(G228:G231) -> 67.49489516 | H232: =SUM(H228:H231) -> 80.35583463 | I232: =SUM(I228:I231) -> 105.7549191 | J232: =SUM(J228:J231) -> 134.6929385 | K232: =SUM(K228:K231) -> 166.8063688
C233: 2 | D233: ='Input | Exit Fees'!D30 -> Single Phase, Two Element
E234: =IF($D233=0,"",E$228) -> WDV - Meter RAB | G234: =IF($D233=0,0,SUMIFS('Calc | Exit Fees'!K$201:K$210,'Input | Exit Fees'!$D$29:$D$38,$D233)) -> 65.2822952 | H234: =IF($D233=0,0,SUMIFS('Calc | Exit Fees'!L$201:L$210,'Input | Exit Fees'!$D$29:$D$38,$D233)) -> 78.23690938 | I234: =IF($D233=0,0,SUMIFS('Calc | Exit Fees'!M$201:M$210,'Input | Exit Fees'!$D$29:$D$38,$D233)) -> 104.5443867 | J234: =IF($D233=0,0,SUMIFS('Calc | Exit Fees'!N$201:N$210,'Input | Exit Fees'!$D$29:$D$38,$D233)) -> 136.6497008 | K234: =IF($D233=0,0,SUMIFS('Calc | Exit Fees'!O$201:O$210,'Input | Exit Fees'!$D$29:$D$38,$D233)) -> 172.994525
... 46 more rows

Sheet Calc | Tax Allowance
B1: ='Title Page'!B8&" v"&'Title Page'!$C$10 -> JEN 2027-31 - ACS Standardised Metering Pricing Model v1.02 | M1: DNSP: | N1: =IF('Inputs | General'!$G$16="Price Cap","NOT USED",NSP) -> JEN - ACS
B2: =MID(CELL("filename",A1),FIND("]",CELL("filename",A1))+1,255) -> Calc | Tax Allowance | H2: Key: | I2: Input | J2: External Link | K2: Internal Link | L2: Jemena added sheet
B5: CALCULATION | Tax Allowance
F7: Base Year | G7: Regulatory period
G8: Tariff ($/year)
D9: Exit Fee Name | E9: Component | F9: 2025-26 | G9: 2026-27 | H9: 2027-28 | I9: 2028-29 | J9: 2029-30 | K9: 2030-31
D10: Single Phase
E11: Revenue excluding tax allowance
E12: Meter RAB | G12: =+'Calc | Exit Fees'!G119 -> 97.37435644 | H12: =+'Calc | Exit Fees'!H119 -> 107.2993551 | I12: =+'Calc | Exit Fees'!I119 -> 130.9021845 | J12: =+'Calc | Exit Fees'!J119 -> 161.6635761 | K12: =+'Calc | Exit Fees'!K119 -> 196.159384
E13: Comms & IT & Other | G13: =+'Calc | Exit Fees'!G120 -> 16.86106876 | H13: =+'Calc | Exit Fees'!H120 -> 17.65885238 | I13: =+'Calc | Exit Fees'!I120 -> 19.53656136 | J13: =+'Calc | Exit Fees'!J120 -> 20.67914198 | K13: =+'Calc | Exit Fees'!K120 -> 20.843605
E14: Admin cost | G14: =+'Calc | Exit Fees'!G121 -> 58.78572293 | H14: =+'Calc | Exit Fees'!H121 -> 60.57670725 | I14: =+'Calc | Exit Fees'!I121 -> 62.49819158 | J14: =+'Calc | Exit Fees'!J121 -> 64.4969193 | K14: =+'Calc | Exit Fees'!K121 -> 66.52659998
E15: Revenue for Tax Assessment Subtotal | G15: =SUM(G12:G14) -> 173.0211481 | H15: =SUM(H12:H14) -> 185.5349147 | I15: =SUM(I12:I14) -> 212.9369374 | J15: =SUM(J12:J14) -> 246.8396374 | K15: =SUM(K12:K14) -> 283.529589
E17: Tax expenses
E18: WDV - Meter TAB | G18: =+'Calc | Exit Fees'!G228 -> 59.86798254 | H18: =+'Calc | Exit Fees'!H228 -> 71.74818089 | I18: =+'Calc | Exit Fees'!I228 -> 95.87379704 | J18: =+'Calc | Exit Fees'!J228 -> 125.3163951 | K18: =+'Calc | Exit Fees'!K228 -> 158.6468915
E19: WDV - Comms & IT & Other TAB | G19: =+'Calc | Exit Fees'!G229 -> 7.626912619 | H19: =+'Calc | Exit Fees'!H229 -> 8.60765374 | I19: =+'Calc | Exit Fees'!I229 -> 9.881122031 | J19: =+'Calc | Exit Fees'!J229 -> 9.376543316 | K19: =+'Calc | Exit Fees'!K229 -> 8.159477385
E20: Admin cost | G20: =+'Calc | Exit Fees'!G121 -> 58.78572293 | H20: =+'Calc | Exit Fees'!H121 -> 60.57670725 | I20: =+'Calc | Exit Fees'!I121 -> 62.49819158 | J20: =+'Calc | Exit Fees'!J121 -> 64.4969193 | K20: =+'Calc | Exit Fees'!K121 -> 66.52659998
E21: Interest expense | G21: 0 | H21: 0 | I21: 0 | J21: 0 | K21: 0
E22: Tax expenses | G22: =SUM(G18:G21) -> 126.2806181 | H22: =SUM(H18:H21) -> 140.9325419 | I22: =SUM(I18:I21) -> 168.2531106 | J22: =SUM(J18:J21) -> 199.1898578 | K22: =SUM(K18:K21) -> 233.3329688
E24: Corporate tax rate | G24: =+'Inputs | General'!H$42 -> 0.3 | H24: =+'Inputs | General'!I$42 -> 0.3 | I24: =+'Inputs | General'!J$42 -> 0.3 | J24: =+'Inputs | General'!K$42 -> 0.3 | K24: =+'Inputs | General'!L$42 -> 0.3
E25: Imputation credits rate | G25: =+'Inputs | General'!H$41 -> 0.57 | H25: =+'Inputs | General'!I$41 -> 0.57 | I25: =+'Inputs | General'!J$41 -> 0.57 | J25: =+'Inputs | General'!K$41 -> 0.57 | K25: =+'Inputs | General'!L$41 -> 0.57
E26: Taxable income | G26: =+G15-G22 -> 46.74053003 | H26: =+H15-H22 -> 44.60237281 | I26: =+I15-I22 -> 44.68382677 | J26: =+J15-J22 -> 47.64977961 | K26: =+K15-K22 -> 50.1966202
E27: Tax payable | G27: =+G26*G24/(1-G24*(1-G25)) -> 16.09891964 | H27: =+H26*H24/(1-H24*(1-H25)) -> 15.36247054 | I27: =+I26*I24/(1-I24*(1-I25)) -> 15.39052587 | J27: =+J26*J24/(1-J24*(1-J25)) -> 16.41209401 | K27: =+K26*K24/(1-K24*(1-K25)) -> 17.28930661
E28: Imputation credits | G28: =+G27*G25 -> 9.176384197 | H28: =+H27*H25 -> 8.756608209 | I28: =+I27*I25 -> 8.772599745 | J28: =+J27*J25 -> 9.354893586 | K28: =+K27*K25 -> 9.854904769
E29: Tax allowance | G29: =+G27-G28 -> 6.922535447 | H29: =+H27-H28 -> 6.605862333 | I29: =+I27-I28 -> 6.617926124 | J29: =+J27-J28 -> 7.057200424 | K29: =+K27-K28 -> 7.434401843
D31: ='Input | Exit Fees'!D30 -> Single Phase, Two Element
E32: Revenue for Tax Assessment Subtotal
E33: Meter RAB | G33: =+'Calc | Exit Fees'!G125 -> 106.180653 | H33: =+'Calc | Exit Fees'!H125 -> 117.003244 | I33: =+'Calc | Exit Fees'!I125 -> 142.7406551 | J33: =+'Calc | Exit Fees'!J125 -> 176.2840311 | K33: =+'Calc | Exit Fees'!K125 -> 213.8995548
E34: Comms & IT & Other | G34: =+'Calc | Exit Fees'!G126 -> 16.86106876 | H34: =+'Calc | Exit Fees'!H126 -> 17.65885238 | I34: =+'Calc | Exit Fees'!I126 -> 19.53656136 | J34: =+'Calc | Exit Fees'!J126 -> 20.67914198 | K34: =+'Calc | Exit Fees'!K126 -> 20.843605
E35: Admin cost | G35: =+'Calc | Exit Fees'!G127 -> 58.78572293 | H35: =+'Calc | Exit Fees'!H127 -> 60.57670725 | I35: =+'Calc | Exit Fees'!I127 -> 62.49819158 | J35: =+'Calc | Exit Fees'!J127 -> 64.4969193 | K35: =+'Calc | Exit Fees'!K127 -> 66.52659998
E36: Revenue for Tax Assessment Subtotal | G36: =SUM(G33:G35) -> 181.8274447 | H36: =SUM(H33:H35) -> 195.2388037 | I36: =SUM(I33:I35) -> 224.7754081 | J36: =SUM(J33:J35) -> 261.4600924 | K36: =SUM(K33:K35) -> 301.2697598
E38: Tax expenses
E39: Meter TAB | G39: =+'Calc | Exit Fees'!G234 -> 65.2822952 | H39: =+'Calc | Exit Fees'!H234 -> 78.23690938 | I39: =+'Calc | Exit Fees'!I234 -> 104.5443867 | J39: =+'Calc | Exit Fees'!J234 -> 136.6497008 | K39: =+'Calc | Exit Fees'!K234 -> 172.994525
E40: Comms & IT & Other TAB | G40: =+'Calc | Exit Fees'!G235 -> 7.626912619 | H40: =+'Calc | Exit Fees'!H235 -> 8.60765374 | I40: =+'Calc | Exit Fees'!I235 -> 9.881122031 | J40: =+'Calc | Exit Fees'!J235 -> 9.376543316 | K40: =+'Calc | Exit Fees'!K235 -> 8.159477385
E41: Admin cost | G41: =+'Calc | Exit Fees'!G127 -> 58.78572293 | H41: =+'Calc | Exit Fees'!H127 -> 60.57670725 | I41: =+'Calc | Exit Fees'!I127 -> 62.49819158 | J41: =+'Calc | Exit Fees'!J127 -> 64.4969193 | K41: =+'Calc | Exit Fees'!K127 -> 66.52659998
E42: Interest expense | G42: 0 | H42: 0 | I42: 0 | J42: 0 | K42: 0
E43: Tax expenses | G43: =SUM(G39:G42) -> 131.6949308 | H43: =SUM(H39:H42) -> 147.4212704 | I43: =SUM(I39:I42) -> 176.9237003 | J43: =SUM(J39:J42) -> 210.5231634 | K43: =SUM(K39:K42) -> 247.6806023
E45: Corporate tax rate | G45: =+'Inputs | General'!H$42 -> 0.3 | H45: =+'Inputs | General'!I$42 -> 0.3 | I45: =+'Inputs | General'!J$42 -> 0.3 | J45: =+'Inputs | General'!K$42 -> 0.3 | K45: =+'Inputs | General'!L$42 -> 0.3
E46: Imputation credits rate | G46: =+'Inputs | General'!H$41 -> 0.57 | H46: =+'Inputs | General'!I$41 -> 0.57 | I46: =+'Inputs | General'!J$41 -> 0.57 | J46: =+'Inputs | General'!K$41 -> 0.57 | K46: =+'Inputs | General'!L$41 -> 0.57
E47: Taxable income | G47: =+G36-G43 -> 50.13251396 | H47: =+H36-H43 -> 47.8175333 | I47: =+I36-I43 -> 47.85170772 | J47: =+J36-J43 -> 50.93692899 | K47: =+K36-K43 -> 53.58915749
E48: Tax payable | G48: =+G47*G45/(1-G45*(1-G46)) -> 17.26722639 | H48: =+H47*H45/(1-H45*(1-H46)) -> 16.4698737 | I48: =+I47*I45/(1-I45*(1-I46)) -> 16.48164445 | J48: =+J47*J45/(1-J45*(1-J46)) -> 17.54429242 | K48: =+K47*K45/(1-K45*(1-K46)) -> 18.45780396
E49: Imputation credits | G49: =+G48*G46 -> 9.842319044 | H49: =+H48*H46 -> 9.387828007 | I49: =+I48*I46 -> 9.394537337 | J49: =+J48*J46 -> 10.00024668 | K49: =+K48*K46 -> 10.52094826
E50: Tax allowance | G50: =+G48-G49 -> 7.424907349 | H50: =+H48-H49 -> 7.08204569 | I50: =+I48-I49 -> 7.087107114 | J50: =+J48-J49 -> 7.54404574 | K50: =+K48-K49 -> 7.936855702
D52: ='Input | Exit Fees'!D31 -> Three Phase (inc. DC)
E53: Revenue for Tax Assessment Subtotal
E54: Meter RAB | G54: =+'Calc | Exit Fees'!G131 -> 138.8147609 | H54: =+'Calc | Exit Fees'!H131 -> 152.9636227 | I54: =+'Calc | Exit Fees'!I131 -> 186.611302 | J54: =+'Calc | Exit Fees'!J131 -> 230.4640717 | K54: =+'Calc | Exit Fees'!K131 -> 279.6405439
E55: Comms & IT & Other | G55: =+'Calc | Exit Fees'!G132 -> 16.86106876 | H55: =+'Calc | Exit Fees'!H132 -> 17.65885238 | I55: =+'Calc | Exit Fees'!I132 -> 19.53656136 | J55: =+'Calc | Exit Fees'!J132 -> 20.67914198 | K55: =+'Calc | Exit Fees'!K132 -> 20.843605
E56: Admin cost | G56: =+'Calc | Exit Fees'!G133 -> 58.78572293 | H56: =+'Calc | Exit Fees'!H133 -> 60.57670725 | I56: =+'Calc | Exit Fees'!I133 -> 62.49819158 | J56: =+'Calc | Exit Fees'!J133 -> 64.4969193 | K56: =+'Calc | Exit Fees'!K133 -> 66.52659998
E57: Revenue for Tax Assessment Subtotal | G57: =SUM(G54:G56) -> 214.4615526 | H57: =SUM(H54:H56) -> 231.1991823 | I57: =SUM(I54:I56) -> 268.646055 | J57: =SUM(J54:J56) -> 315.6401329 | K57: =SUM(K54:K56) -> 367.0107488
E59: Tax expenses
E60: Meter TAB | G60: =+'Calc | Exit Fees'!G240 -> 85.34649148 | H60: =+'Calc | Exit Fees'!H240 -> 102.2826434 | I60: =+'Calc | Exit Fees'!I240 -> 136.6755961 | J60: =+'Calc | Exit Fees'!J240 -> 178.6483224 | K60: =+'Calc | Exit Fees'!K240 -> 226.1635518
E61: Comms & IT & Other TAB | G61: =+'Calc | Exit Fees'!G241 -> 7.626912619 | H61: =+'Calc | Exit Fees'!H241 -> 8.60765374 | I61: =+'Calc | Exit Fees'!I241 -> 9.881122031 | J61: =+'Calc | Exit Fees'!J241 -> 9.376543316 | K61: =+'Calc | Exit Fees'!K241 -> 8.159477385
E62: Admin cost | G62: =+'Calc | Exit Fees'!G133 -> 58.78572293 | H62: =+'Calc | Exit Fees'!H133 -> 60.57670725 | I62: =+'Calc | Exit Fees'!I133 -> 62.49819158 | J62: =+'Calc | Exit Fees'!J133 -> 64.4969193 | K62: =+'Calc | Exit Fees'!K133 -> 66.52659998
E63: Interest expense | G63: 0 | H63: 0 | I63: 0 | J63: 0 | K63: 0
E64: Tax expenses | G64: =SUM(G60:G63) -> 151.759127 | H64: =SUM(H60:H63) -> 171.4670044 | I64: =SUM(I60:I63) -> 209.0549097 | J64: =SUM(J60:J63) -> 252.5217851 | K64: =SUM(K60:K63) -> 300.8496291
E66: Corporate tax rate | G66: =+'Inputs | General'!H$42 -> 0.3 | H66: =+'Inputs | General'!I$42 -> 0.3 | I66: =+'Inputs | General'!J$42 -> 0.3 | J66: =+'Inputs | General'!K$42 -> 0.3 | K66: =+'Inputs | General'!L$42 -> 0.3
E67: Imputation credits rate | G67: =+'Inputs | General'!H$41 -> 0.57 | H67: =+'Inputs | General'!I$41 -> 0.57 | I67: =+'Inputs | General'!J$41 -> 0.57 | J67: =+'Inputs | General'!K$41 -> 0.57 | K67: =+'Inputs | General'!L$41 -> 0.57
E68: Taxable income | G68: =+G57-G64 -> 62.70242555 | H68: =+H57-H64 -> 59.73217793 | I68: =+I57-I64 -> 59.59114525 | J68: =+J57-J64 -> 63.11834787 | K68: =+K57-K64 -> 66.1611197
E69: Tax payable | G69: =+G68*G66/(1-G66*(1-G67)) -> 21.59670226 | H69: =+H68*H66/(1-H66*(1-H67)) -> 20.57365485 | I69: =+I68*I66/(1-I66*(1-I67)) -> 20.52507873 | J69: =+J68*J66/(1-J66*(1-J67)) -> 21.73995908 | K69: =+K68*K66/(1-K66*(1-K67)) -> 22.78798612
E70: Imputation credits | G70: =+G69*G67 -> 12.31012029 | H70: =+H69*H67 -> 11.72698327 | I70: =+I69*I67 -> 11.69929488 | J70: =+J69*J67 -> 12.39177668 | K70: =+K69*K67 -> 12.98915209
E71: Tax allowance | G71: =+G69-G70 -> 9.28658197 | H71: =+H69-H70 -> 8.846671587 | I71: =+I69-I70 -> 8.825783855 | J71: =+J69-J70 -> 9.348182405 | K71: =+K69-K70 -> 9.798834031
D73: ='Input | Exit Fees'!D32 -> Three Phase CT
E74: Revenue for Tax Assessment Subtotal
E75: Meter RAB | G75: =+'Calc | Exit Fees'!G137 -> 203.2476752 | H75: =+'Calc | Exit Fees'!H137 -> 223.9639395 | I75: =+'Calc | Exit Fees'!I137 -> 273.2296844 | J75: =+'Calc | Exit Fees'!J137 -> 337.4373625 | K75: =+'Calc | Exit Fees'!K137 -> 409.4398181
E76: Comms & IT & Other | G76: =+'Calc | Exit Fees'!G138 -> 16.86106876 | H76: =+'Calc | Exit Fees'!H138 -> 17.65885238 | I76: =+'Calc | Exit Fees'!I138 -> 19.53656136 | J76: =+'Calc | Exit Fees'!J138 -> 20.67914198 | K76: =+'Calc | Exit Fees'!K138 -> 20.843605
E77: Admin cost | G77: =+'Calc | Exit Fees'!G139 -> 58.78572293 | H77: =+'Calc | Exit Fees'!H139 -> 60.57670725 | I77: =+'Calc | Exit Fees'!I139 -> 62.49819158 | J77: =+'Calc | Exit Fees'!J139 -> 64.4969193 | K77: =+'Calc | Exit Fees'!K139 -> 66.52659998
E78: Revenue for Tax Assessment Subtotal | G78: =SUM(G75:G77) -> 278.8944669 | H78: =SUM(H75:H77) -> 302.1994991 | I78: =SUM(I75:I77) -> 355.2644374 | J78: =SUM(J75:J77) -> 422.6134238 | K78: =SUM(K75:K77) -> 496.8100231
E80: Tax expenses
E81: Meter TAB | G81: =+'Calc | Exit Fees'!G246 -> 124.9613216 | H81: =+'Calc | Exit Fees'!H246 -> 149.7586377 | I81: =+'Calc | Exit Fees'!I246 -> 200.1155856 | J81: =+'Calc | Exit Fees'!J246 -> 261.5705707 | K81: =+'Calc | Exit Fees'!K246 -> 331.140693
E82: Comms & IT & Other TAB | G82: =+'Calc | Exit Fees'!G247 -> 7.626912619 | H82: =+'Calc | Exit Fees'!H247 -> 8.60765374 | I82: =+'Calc | Exit Fees'!I247 -> 9.881122031 | J82: =+'Calc | Exit Fees'!J247 -> 9.376543316 | K82: =+'Calc | Exit Fees'!K247 -> 8.159477385
E83: Admin cost | G83: =+'Calc | Exit Fees'!G139 -> 58.78572293 | H83: =+'Calc | Exit Fees'!H139 -> 60.57670725 | I83: =+'Calc | Exit Fees'!I139 -> 62.49819158 | J83: =+'Calc | Exit Fees'!J139 -> 64.4969193 | K83: =+'Calc | Exit Fees'!K139 -> 66.52659998
E84: Interest expense | G84: 0 | H84: 0 | I84: 0 | J84: 0 | K84: 0
E85: Tax expenses | G85: =SUM(G81:G84) -> 191.3739572 | H85: =SUM(H81:H84) -> 218.9429987 | I85: =SUM(I81:I84) -> 272.4948993 | J85: =SUM(J81:J84) -> 335.4440333 | K85: =SUM(K81:K84) -> 405.8267704
E87: Corporate tax rate | G87: =+'Inputs | General'!H$42 -> 0.3 | H87: =+'Inputs | General'!I$42 -> 0.3 | I87: =+'Inputs | General'!J$42 -> 0.3 | J87: =+'Inputs | General'!K$42 -> 0.3 | K87: =+'Inputs | General'!L$42 -> 0.3
E88: Imputation credits rate | G88: =+'Inputs | General'!H$41 -> 0.57 | H88: =+'Inputs | General'!I$41 -> 0.57 | I88: =+'Inputs | General'!J$41 -> 0.57 | J88: =+'Inputs | General'!K$41 -> 0.57 | K88: =+'Inputs | General'!L$41 -> 0.57
E89: Taxable income | G89: =+G78-G85 -> 87.52050975 | H89: =+H78-H85 -> 83.25650039 | I89: =+I78-I85 -> 82.76953811 | J89: =+J78-J85 -> 87.16939049 | K89: =+K78-K85 -> 90.98325265
E90: Tax payable | G90: =+G89*G87/(1-G87*(1-G88)) -> 30.14483688 | H90: =+H89*H87/(1-H87*(1-H88)) -> 28.67617694 | I90: =+I89*I87/(1-I87*(1-I88)) -> 28.5084517 | J90: =+J89*J87/(1-J87*(1-J88)) -> 30.02390028 | K90: =+K89*K87/(1-K87*(1-K88)) -> 31.33751526
E91: Imputation credits | G91: =+G90*G88 -> 17.18255702 | H91: =+H90*H88 -> 16.34542086 | I91: =+I90*I88 -> 16.24981747 | J91: =+J90*J88 -> 17.11362316 | K91: =+K90*K88 -> 17.8623837
E92: Tax allowance | G92: =+G90-G91 -> 12.96227986 | H92: =+H90-H91 -> 12.33075609 | I92: =+I90-I91 -> 12.25863423 | J92: =+J90-J91 -> 12.91027712 | K92: =+K90-K91 -> 13.47513156

Sheet Output | Exit Fee price caps
B1: ='Title Page'!B8&" v"&'Title Page'!$C$10 -> JEN 2027-31 - ACS Standardised Metering Pricing Model v1.02 | M1: DNSP: | N1: D
B2: =MID(CELL("filename",A1),FIND("]",CELL("filename",A1))+1,255) -> Output | Exit Fee price caps | H2: Key: | I2: Input | J2: External Link | K2: Internal Link
C5: Applicable Exit Fees Price Caps
H7: Base Year | I7: Regulatory Period
D8: Exit Fee Name | F8: Units | G8: Basis | H8: =LEFT(I8,4)-1&"-"&RIGHT(I8,2)-1 -> 2025-26 | I8: =FPFirstYear -> 2026-27 | J8: =LEFT(I8,4)+1&"-"&RIGHT(I8,2)+1 -> 2027-28 | K8: =LEFT(J8,4)+1&"-"&RIGHT(J8,2)+1 -> 2028-29 | L8: =LEFT(K8,4)+1&"-"&RIGHT(K8,2)+1 -> 2029-30 | M8: =LEFT(L8,4)+1&"-"&RIGHT(L8,2)+1 -> 2030-31
D9: =D25 -> Single Phase (inc. DC) | F9: $dollars | G9: nominal | H9: =ROUND(H25,2) -> 191.64 | I9: =IF(I25=0,0,ROUND(H9*(1-I45)*(1+I$41),2)) -> 179.94 | J9: =IF(J25=0,0,ROUND(I9*(1-J45)*(1+J$41),2)) -> 192.14 | K9: 219.55 | L9: 253.89 | M9: 290.96
D10: =D26 -> Single Phase, Two Element | F10: $dollars | G10: nominal | H10: 191.64 | I10: 189.25 | J10: 202.32 | K10: 231.86 | L10: 269 | M10: 309.2
D11: Three Phase (inc. DC) | F11: $dollars | G11: nominal | H11: =ROUND(H27,2) -> 191.64 | I11: =IF(I27=0,0,ROUND(H11*(1-I47)*(1+I$41),2)) -> 223.75 | J11: =IF(J27=0,0,ROUND(I11*(1-J47)*(1+J$41),2)) -> 240.05 | K11: =IF(K27=0,0,ROUND(J11*(1-K47)*(1+K$41),2)) -> 277.48 | L11: =IF(L27=0,0,ROUND(K11*(1-L47)*(1+L$41),2)) -> 325 | M11: =IF(M27=0,0,ROUND(L11*(1-M47)*(1+M$41),2)) -> 376.82
D12: Three Phase CT | F12: $dollars | G12: nominal | H12: 191.64 | I12: 291.86 | J12: 314.53 | K12: 367.52 | L12: 435.52 | M12: 510.28
D13: 0 | F13: $dollars | G13: nominal | H13: 0 | I13: 0 | J13: 0 | K13: 0 | L13: 0 | M13: 0
D14: 0 | F14: $dollars | G14: nominal | H14: 0 | I14: 0 | J14: 0 | K14: 0 | L14: 0 | M14: 0
D15: 0 | F15: $dollars | G15: nominal | H15: 0 | I15: 0 | J15: 0 | K15: 0 | L15: 0 | M15: 0
D16: 0 | F16: $dollars | G16: nominal | H16: 0 | I16: 0 | J16: 0 | K16: 0 | L16: 0 | M16: 0
D17: 0 | F17: $dollars | G17: nominal | H17: 0 | I17: 0 | J17: 0 | K17: 0 | L17: 0 | M17: 0
D18: 0 | F18: $dollars | G18: nominal | H18: 0 | I18: 0 | J18: 0 | K18: 0 | L18: 0 | M18: 0
C21: Exit Fees Per Meter
H23: Base Year | I23: Regulatory Period
D24: Exit Fee Name | F24: Units | G24: Basis | H24: =LEFT(I24,4)-1&"-"&RIGHT(I24,2)-1 -> 2025-26 | I24: =FPFirstYear -> 2026-27 | J24: =LEFT(I24,4)+1&"-"&RIGHT(I24,2)+1 -> 2027-28 | K24: =LEFT(J24,4)+1&"-"&RIGHT(J24,2)+1 -> 2028-29 | L24: =LEFT(K24,4)+1&"-"&RIGHT(K24,2)+1 -> 2029-30 | M24: =LEFT(L24,4)+1&"-"&RIGHT(L24,2)+1 -> 2030-31
D25: ='Input | Exit Fees'!$D29 -> Single Phase (inc. DC) | F25: $dollars | G25: nominal | H25: =INDEX(Table3[2025-26],MATCH('Output | Exit Fee price caps'!$D25,Table3[[Exit Fee Name]:[Exit Fee Name]],0)+5) -> 191.64 | I25: =INDEX(Table3[2026-27],MATCH('Output | Exit Fee price caps'!$D25,Table3[[Exit Fee Name]:[Exit Fee Name]],0)+5) -> 179.9436836 | J25: =INDEX(Table3[2027-28],MATCH('Output | Exit Fee price caps'!$D25,Table3[[Exit Fee Name]:[Exit Fee Name]],0)+5) -> 192.140777 | K25: =INDEX(Table3[2028-29],MATCH('Output | Exit Fee price caps'!$D25,Table3[[Exit Fee Name]:[Exit Fee Name]],0)+5) -> 219.5548635 | L25: =INDEX(Table3[2029-30],MATCH('Output | Exit Fee price caps'!$D25,Table3[[Exit Fee Name]:[Exit Fee Name]],0)+5) -> 253.8968378 | M25: =INDEX(Table3[2030-31],MATCH('Output | Exit Fee price caps'!$D25,Table3[[Exit Fee Name]:[Exit Fee Name]],0)+5) -> 290.9639909
D26: ='Input | Exit Fees'!$D30 -> Single Phase, Two Element | F26: $dollars | G26: nominal | H26: =INDEX(Table3[2025-26],MATCH('Output | Exit Fee price caps'!$D26,Table3[[Exit Fee Name]:[Exit Fee Name]],0)+5) -> 191.64 | I26: =INDEX(Table3[2026-27],MATCH('Output | Exit Fee price caps'!$D26,Table3[[Exit Fee Name]:[Exit Fee Name]],0)+5) -> 189.2523521 | J26: =INDEX(Table3[2027-28],MATCH('Output | Exit Fee price caps'!$D26,Table3[[Exit Fee Name]:[Exit Fee Name]],0)+5) -> 202.3208494 | K26: =INDEX(Table3[2028-29],MATCH('Output | Exit Fee price caps'!$D26,Table3[[Exit Fee Name]:[Exit Fee Name]],0)+5) -> 231.8625152 | L26: =INDEX(Table3[2029-30],MATCH('Output | Exit Fee price caps'!$D26,Table3[[Exit Fee Name]:[Exit Fee Name]],0)+5) -> 269.0041381 | M26: =INDEX(Table3[2030-31],MATCH('Output | Exit Fee price caps'!$D26,Table3[[Exit Fee Name]:[Exit Fee Name]],0)+5) -> 309.2066155
D27: ='Input | Exit Fees'!$D31 -> Three Phase (inc. DC) | F27: $dollars | G27: nominal | H27: =INDEX(Table3[2025-26],MATCH('Output | Exit Fee price caps'!$D27,Table3[[Exit Fee Name]:[Exit Fee Name]],0)+5) -> 191.64 | I27: =INDEX(Table3[2026-27],MATCH('Output | Exit Fee price caps'!$D27,Table3[[Exit Fee Name]:[Exit Fee Name]],0)+5) -> 223.7481345 | J27: =INDEX(Table3[2027-28],MATCH('Output | Exit Fee price caps'!$D27,Table3[[Exit Fee Name]:[Exit Fee Name]],0)+5) -> 240.0458539 | K27: =INDEX(Table3[2028-29],MATCH('Output | Exit Fee price caps'!$D27,Table3[[Exit Fee Name]:[Exit Fee Name]],0)+5) -> 277.4718388 | L27: =INDEX(Table3[2029-30],MATCH('Output | Exit Fee price caps'!$D27,Table3[[Exit Fee Name]:[Exit Fee Name]],0)+5) -> 324.9883153 | M27: =INDEX(Table3[2030-31],MATCH('Output | Exit Fee price caps'!$D27,Table3[[Exit Fee Name]:[Exit Fee Name]],0)+5) -> 376.8095829
D28: ='Input | Exit Fees'!$D32 -> Three Phase CT | F28: $dollars | G28: nominal | H28: =INDEX(Table3[2025-26],MATCH('Output | Exit Fee price caps'!$D28,Table3[[Exit Fee Name]:[Exit Fee Name]],0)+5) -> 191.64 | I28: =INDEX(Table3[2026-27],MATCH('Output | Exit Fee price caps'!$D28,Table3[[Exit Fee Name]:[Exit Fee Name]],0)+5) -> 291.8567468 | J28: =INDEX(Table3[2027-28],MATCH('Output | Exit Fee price caps'!$D28,Table3[[Exit Fee Name]:[Exit Fee Name]],0)+5) -> 314.5302552 | K28: =INDEX(Table3[2028-29],MATCH('Output | Exit Fee price caps'!$D28,Table3[[Exit Fee Name]:[Exit Fee Name]],0)+5) -> 367.5230716 | L28: =INDEX(Table3[2029-30],MATCH('Output | Exit Fee price caps'!$D28,Table3[[Exit Fee Name]:[Exit Fee Name]],0)+5) -> 435.5237009 | M28: =INDEX(Table3[2030-31],MATCH('Output | Exit Fee price caps'!$D28,Table3[[Exit Fee Name]:[Exit Fee Name]],0)+5) -> 510.2851546
D29: ='Input | Exit Fees'!$D33 -> 0 | F29: $dollars | G29: nominal | H29: =INDEX(Table3[2025-26],MATCH('Output | Exit Fee price caps'!$D29,Table3[[Exit Fee Name]:[Exit Fee Name]],0)+5) -> 0 | I29: =INDEX(Table3[2026-27],MATCH('Output | Exit Fee price caps'!$D29,Table3[[Exit Fee Name]:[Exit Fee Name]],0)+5) -> 0 | J29: =INDEX(Table3[2027-28],MATCH('Output | Exit Fee price caps'!$D29,Table3[[Exit Fee Name]:[Exit Fee Name]],0)+5) -> 0 | K29: =INDEX(Table3[2028-29],MATCH('Output | Exit Fee price caps'!$D29,Table3[[Exit Fee Name]:[Exit Fee Name]],0)+5) -> 0 | L29: =INDEX(Table3[2029-30],MATCH('Output | Exit Fee price caps'!$D29,Table3[[Exit Fee Name]:[Exit Fee Name]],0)+5) -> 0 | M29: =INDEX(Table3[2030-31],MATCH('Output | Exit Fee price caps'!$D29,Table3[[Exit Fee Name]:[Exit Fee Name]],0)+5) -> 0
D30: ='Input | Exit Fees'!$D34 -> 0 | F30: $dollars | G30: nominal | H30: =INDEX(Table3[2025-26],MATCH('Output | Exit Fee price caps'!$D30,Table3[[Exit Fee Name]:[Exit Fee Name]],0)+5) -> 0 | I30: =INDEX(Table3[2026-27],MATCH('Output | Exit Fee price caps'!$D30,Table3[[Exit Fee Name]:[Exit Fee Name]],0)+5) -> 0 | J30: =INDEX(Table3[2027-28],MATCH('Output | Exit Fee price caps'!$D30,Table3[[Exit Fee Name]:[Exit Fee Name]],0)+5) -> 0 | K30: =INDEX(Table3[2028-29],MATCH('Output | Exit Fee price caps'!$D30,Table3[[Exit Fee Name]:[Exit Fee Name]],0)+5) -> 0 | L30: =INDEX(Table3[2029-30],MATCH('Output | Exit Fee price caps'!$D30,Table3[[Exit Fee Name]:[Exit Fee Name]],0)+5) -> 0 | M30: =INDEX(Table3[2030-31],MATCH('Output | Exit Fee price caps'!$D30,Table3[[Exit Fee Name]:[Exit Fee Name]],0)+5) -> 0
D31: ='Input | Exit Fees'!$D35 -> 0 | F31: $dollars | G31: nominal | H31: =INDEX(Table3[2025-26],MATCH('Output | Exit Fee price caps'!$D31,Table3[[Exit Fee Name]:[Exit Fee Name]],0)+5) -> 0 | I31: =INDEX(Table3[2026-27],MATCH('Output | Exit Fee price caps'!$D31,Table3[[Exit Fee Name]:[Exit Fee Name]],0)+5) -> 0 | J31: =INDEX(Table3[2027-28],MATCH('Output | Exit Fee price caps'!$D31,Table3[[Exit Fee Name]:[Exit Fee Name]],0)+5) -> 0 | K31: =INDEX(Table3[2028-29],MATCH('Output | Exit Fee price caps'!$D31,Table3[[Exit Fee Name]:[Exit Fee Name]],0)+5) -> 0 | L31: =INDEX(Table3[2029-30],MATCH('Output | Exit Fee price caps'!$D31,Table3[[Exit Fee Name]:[Exit Fee Name]],0)+5) -> 0 | M31: =INDEX(Table3[2030-31],MATCH('Output | Exit Fee price caps'!$D31,Table3[[Exit Fee Name]:[Exit Fee Name]],0)+5) -> 0
D32: ='Input | Exit Fees'!$D36 -> 0 | F32: $dollars | G32: nominal | H32: =INDEX(Table3[2025-26],MATCH('Output | Exit Fee price caps'!$D32,Table3[[Exit Fee Name]:[Exit Fee Name]],0)+5) -> 0 | I32: =INDEX(Table3[2026-27],MATCH('Output | Exit Fee price caps'!$D32,Table3[[Exit Fee Name]:[Exit Fee Name]],0)+5) -> 0 | J32: =INDEX(Table3[2027-28],MATCH('Output | Exit Fee price caps'!$D32,Table3[[Exit Fee Name]:[Exit Fee Name]],0)+5) -> 0 | K32: =INDEX(Table3[2028-29],MATCH('Output | Exit Fee price caps'!$D32,Table3[[Exit Fee Name]:[Exit Fee Name]],0)+5) -> 0 | L32: =INDEX(Table3[2029-30],MATCH('Output | Exit Fee price caps'!$D32,Table3[[Exit Fee Name]:[Exit Fee Name]],0)+5) -> 0 | M32: =INDEX(Table3[2030-31],MATCH('Output | Exit Fee price caps'!$D32,Table3[[Exit Fee Name]:[Exit Fee Name]],0)+5) -> 0
D33: ='Input | Exit Fees'!$D37 -> 0 | F33: $dollars | G33: nominal | H33: =INDEX(Table3[2025-26],MATCH('Output | Exit Fee price caps'!$D33,Table3[[Exit Fee Name]:[Exit Fee Name]],0)+5) -> 0 | I33: =INDEX(Table3[2026-27],MATCH('Output | Exit Fee price caps'!$D33,Table3[[Exit Fee Name]:[Exit Fee Name]],0)+5) -> 0 | J33: =INDEX(Table3[2027-28],MATCH('Output | Exit Fee price caps'!$D33,Table3[[Exit Fee Name]:[Exit Fee Name]],0)+5) -> 0 | K33: =INDEX(Table3[2028-29],MATCH('Output | Exit Fee price caps'!$D33,Table3[[Exit Fee Name]:[Exit Fee Name]],0)+5) -> 0 | L33: =INDEX(Table3[2029-30],MATCH('Output | Exit Fee price caps'!$D33,Table3[[Exit Fee Name]:[Exit Fee Name]],0)+5) -> 0 | M33: =INDEX(Table3[2030-31],MATCH('Output | Exit Fee price caps'!$D33,Table3[[Exit Fee Name]:[Exit Fee Name]],0)+5) -> 0
D34: ='Input | Exit Fees'!$D38 -> 0 | F34: $dollars | G34: nominal | H34: =INDEX(Table3[2025-26],MATCH('Output | Exit Fee price caps'!$D34,Table3[[Exit Fee Name]:[Exit Fee Name]],0)+5) -> 0 | I34: =INDEX(Table3[2026-27],MATCH('Output | Exit Fee price caps'!$D34,Table3[[Exit Fee Name]:[Exit Fee Name]],0)+5) -> 0 | J34: =INDEX(Table3[2027-28],MATCH('Output | Exit Fee price caps'!$D34,Table3[[Exit Fee Name]:[Exit Fee Name]],0)+5) -> 0 | K34: =INDEX(Table3[2028-29],MATCH('Output | Exit Fee price caps'!$D34,Table3[[Exit Fee Name]:[Exit Fee Name]],0)+5) -> 0 | L34: =INDEX(Table3[2029-30],MATCH('Output | Exit Fee price caps'!$D34,Table3[[Exit Fee Name]:[Exit Fee Name]],0)+5) -> 0 | M34: =INDEX(Table3[2030-31],MATCH('Output | Exit Fee price caps'!$D34,Table3[[Exit Fee Name]:[Exit Fee Name]],0)+5) -> 0
C39: Xfactors
D41: CPI | F41: % | I41: ='Inputs | General'!H26 -> 0.02549993905 | J41: ='Inputs | General'!I26 -> 0.02549993905 | K41: ='Inputs | General'!J26 -> 0.02549993905 | L41: ='Inputs | General'!K26 -> 0.02549993905 | M41: ='Inputs | General'!L26 -> 0.02549993905
I43: =FPFirstYear -> 2026-27 | J43: =LEFT(I43,4)+1&"-"&RIGHT(I43,2)+1 -> 2027-28 | K43: =LEFT(J43,4)+1&"-"&RIGHT(J43,2)+1 -> 2028-29 | L43: =LEFT(K43,4)+1&"-"&RIGHT(K43,2)+1 -> 2029-30 | M43: =LEFT(L43,4)+1&"-"&RIGHT(L43,2)+1 -> 2030-31
D44: Exit Fee Name | F44: Units | I44: P_0 | J44: X_02 | K44: X_03 | L44: X_04 | M44: X_05
D45: ='Input | Exit Fees'!$D29 -> Single Phase (inc. DC) | F45: % | I45: =IFERROR(-1*(((I25/H25)/(1+I$41)-1)),"") -> 0.08438098034 | J45: -0.04123149769 | K45: -0.1142634381 | L45: -0.1276610788 | M45: -0.1174968667
D46: ='Input | Exit Fees'!$D30 -> Single Phase, Two Element | F46: % | I46: 0.03701508369 | J46: -0.04247035806 | K46: -0.1175173236 | L46: -0.131339054 | M46: -0.1208672434
D47: ='Input | Exit Fees'!$D31 -> Three Phase (inc. DC) | F47: % | I47: -0.1385120252 | J47: -0.04616249651 | K47: -0.127169073 | L47: -0.1421238363 | M47: -0.1306249203
D48: ='Input | Exit Fees'!$D32 -> Three Phase CT | F48: % | I48: -0.4850734579 | J48: -0.05088949603 | K48: -0.1394270918 | L48: -0.1555574653 | M48: -0.1425244454
D49: ='Input | Exit Fees'!$D33 -> 0 | F49: %
D50: ='Input | Exit Fees'!$D34 -> 0 | F50: %
D51: ='Input | Exit Fees'!$D35 -> 0 | F51: %
D52: ='Input | Exit Fees'!$D36 -> 0 | F52: %
D53: ='Input | Exit Fees'!$D37 -> 0 | F53: %
D54: ='Input | Exit Fees'!$D38 -> 0 | F54: %
C58: Cost Metric
H60: Base Year | I60: Regulatory Period
D61: Exit Fee Per Meter | F61: Units | G61: Basis | H61: =LEFT(I61,4)-1&"-"&RIGHT(I61,2)-1 -> 2025-26 | I61: =FPFirstYear -> 2026-27 | J61: =LEFT(I61,4)+1&"-"&RIGHT(I61,2)+1 -> 2027-28 | K61: =LEFT(J61,4)+1&"-"&RIGHT(J61,2)+1 -> 2028-29 | L61: =LEFT(K61,4)+1&"-"&RIGHT(K61,2)+1 -> 2029-30 | M61: =LEFT(L61,4)+1&"-"&RIGHT(L61,2)+1 -> 2030-31
D62: Volume Weighted Average Exit Fee - Per Meter | F62: $dollars | G62: nominal | H62: =SUMPRODUCT(H$25:H$34,'Calc | Exit Fees'!J$31:J$40)/'Calc | Exit Fees'!J$41 -> 191.64 | I62: =SUMPRODUCT(I$25:I$34,'Calc | Exit Fees'!K$31:K$40)/'Calc | Exit Fees'!K$41 -> 188.8256974 | J62: =SUMPRODUCT(J$25:J$34,'Calc | Exit Fees'!L$31:L$40)/'Calc | Exit Fees'!L$41 -> 202.8256287 | K62: =SUMPRODUCT(K$25:K$34,'Calc | Exit Fees'!M$31:M$40)/'Calc | Exit Fees'!M$41 -> 233.5409273 | L62: =SUMPRODUCT(L$25:L$34,'Calc | Exit Fees'!N$31:N$40)/'Calc | Exit Fees'!N$41 -> 272.3550154 | M62: =SUMPRODUCT(M$25:M$34,'Calc | Exit Fees'!O$31:O$40)/'Calc | Exit Fees'!O$41 -> 314.7866705

Sheet LUTs and Dropdowns
B1: ='Title Page'!B8&" v"&'Title Page'!$C$10 -> JEN 2027-31 - ACS Standardised Metering Pricing Model v1.02
B2: =MID(CELL("filename",A1),FIND("]",CELL("filename",A1))+1,255) -> LUTs and Dropdowns
B14: Model Use
B15: Price Cap
B16: Exit Fees (Vic)
B17: Show All Sheets
B20: Admin Charges
B21: Entered
B22: Calc-Fixed
B23: Calc-Hourly
